Workbook

Sheet 选品需求 (hidden)
A1: 828活动选品需求表格
A2: 模块 | B2: 要求 | C2: 图片
A3: 联合营销秒杀 | B3: 2款 每款5-10款 中小包 高于成本价定价
A4: 先试后买 | B4: 款式热卖 顾客评价好 退货率低图片实物差距小
A5: 聚划算 | B5: 25、26日10点各一波 提高业绩产出
A6: 孤品秒杀 | B6: 正式期 1.每天晚上21:00开秒，限时秒杀（5天） 2.2小时内没有秒杀完毕，手动下架 3.打造真正的限时秒杀
A7: 试用中心

Sheet 828活动折扣情况 (hidden)
A1: 828活动产品价格情况
A2: 名称 | B2: 数量 | C2: 折扣数 | D2: 折扣情况
A3: 一级爆款 | B3: 8 | C3: 无 | D3: 4款产品减1元（历史最低价小1元）
A4: 二级爆款 | B4: 9 | C4: 4 | D4: 4款减20
A5: 三级爆款 | B5: 23 | C5: 11 | D5: 3款减10元 6款减20元 1款减1元
A6: 普通款 | B6: 12 | C6: 7 | D6: 3款减10元 4款减30元
A7: 做完不做 | B7: 18 | C7: 16 | D7: 5款减30元 5款减50 3款减60 2款减100 1款减1元
A8: 7月新品 | B8: 6 | C8: 2 | D8: 2款减10元 1款减1元

Sheet SKU表 (hidden)
A1: 产品编号 | B1: 规格 | C1: 条形码 | D1: SKU | E1: 可销库存 | F1: 路途数 | G1: 库存+路途 | H1: 7天销量 | I1: 30天销量 | J1: 7转30日销量 | K1: 补单量 | L1: 备货量 | M1: 库存可售月数 | N1: 库存+路途可售月数 | O1: 补单后可售月数 | P1: 备货后可售月数 | Q1: 梯队 | R1: 库存可售月数 | S1: 库存+路途可售月数 | T1: 补单后可售月数 | U1: 备货后可售月数 | V1: 成本价 | W1: 单价 | X1: 销售额 | Y1: 30 | Z1: 库存可支持业绩 | AA1: 库存+路途可支持业绩 | AB1: 本次下单后可支持业绩
A2: B00522 | B2: 多彩几何 | C2: B11109BL | D2: =A2&B2 -> B00522多彩几何 | E2: 1 | F2: 0 | G2: =E2+F2 -> 1 | H2: 0 | I2: 0 | J2: =H2/7*30 -> 0 | M2: =IF(J2=0,E2,E2/J2) -> 1 | N2: =IF(J2=0,G2,G2/J2) -> 1 | O2: =IF(J2=0,G2,(G2+K2)/J2) -> 1 | P2: =IF(J2=0,G2,(G2+K2+L2)/J2) -> 1 | Q2: 颜色不做 | R2: =IF(I2=0,E2,E2/I2) -> 1 | S2: =IF(I2=0,G2,G2/I2) -> 1 | T2: =IF(I2=0,K2+G2,(K2+G2)/I2) -> 1 | U2: =IF(I2=0,G2,(K2+G2+L2)/I2) -> 1 | V2: 91 | W2: 149 | X2: =W2*J2 -> 0 | Y2: =W2*I2 -> 0 | Z2: =W2*E2 -> 149 | AA2: =G2*W2 -> 149 | AB2: =(G2+K2+L2)*W2 -> 149
A3: B00522 | B3: 多彩拼色 | C3: B11109XL | D3: B00522多彩拼色 | E3: 1 | F3: 0 | G3: 1 | H3: 0 | I3: 0 | J3: 0 | M3: 1 | N3: 1 | O3: 1 | P3: 1 | Q3: 颜色不做 | R3: 1 | S3: 1 | T3: 1 | U3: 1 | V3: 85 | W3: 149 | X3: 0 | Y3: 0 | Z3: 149 | AA3: 149 | AB3: 149
A4: B00522 | B4: 黑色大版 | C4: B11109OL | D4: B00522黑色大版 | E4: 152 | F4: 891 | G4: 1043 | H4: 30 | I4: 134 | J4: =H4/7*30 -> 128.5714286 | M4: 1.182222222 | N4: 8.112222222 | O4: 8.112222222 | P4: 8.112222222 | Q4: 一级爆款 | R4: 1.134328358 | S4: 7.78358209 | T4: 7.78358209 | U4: 7.78358209 | V4: 70.45 | W4: 115 | X4: 14785.71429 | Y4: 15410 | Z4: 17480 | AA4: 119945 | AB4: 119945
A5: B00522 | B5: 黑色小版 | C5: B111090S | D5: B00522黑色小版 | E5: 98 | F5: 255 | G5: 353 | H5: 16 | I5: 82 | J5: =H5/7*30 -> 68.57142857 | M5: 1.429166667 | N5: 5.147916667 | O5: 5.147916667 | P5: 5.147916667 | Q5: 一级爆款 | R5: 1.195121951 | S5: 4.304878049 | T5: 4.304878049 | U5: 4.304878049 | V5: 54.45 | W5: 95 | X5: 6514.285714 | Y5: 7790 | Z5: 9310 | AA5: 33535 | AB5: 33535
A6: B00522 | B6: 红咖大版 | C6: B111099L | D6: B00522红咖大版 | E6: 174 | F6: 789 | G6: 963 | H6: 27 | I6: 81 | J6: 115.7142857 | M6: 1.503703704 | N6: 8.322222222 | O6: 8.322222222 | P6: 8.322222222 | Q6: 一级爆款 | R6: 2.148148148 | S6: 11.88888889 | T6: 11.88888889 | U6: 11.88888889 | V6: 70.45 | W6: 115 | X6: 13307.14286 | Y6: 9315 | Z6: 20010 | AA6: 110745 | AB6: 110745
A7: B00522 | B7: 红咖小版 | C7: B111099S | D7: B00522红咖小版 | E7: 132 | F7: 230 | G7: 362 | H7: 10 | I7: 56 | J7: 42.85714286 | M7: 3.08 | N7: 8.446666667 | O7: 8.446666667 | P7: 8.446666667 | Q7: 一级爆款 | R7: 2.357142857 | S7: 6.464285714 | T7: 6.464285714 | U7: 6.464285714 | V7: 54.45 | W7: 95 | X7: 4071.428571 | Y7: 5320 | Z7: 12540 | AA7: 34390 | AB7: 34390
A8: B00522 | B8: 湖水蓝大版 | C8: B11109H3L | D8: B00522湖水蓝大版 | E8: 160 | F8: 716 | G8: 876 | H8: 23 | I8: 118 | J8: 98.57142857 | M8: 1.623188406 | N8: 8.886956522 | O8: 8.886956522 | P8: 8.886956522 | Q8: 一级爆款 | R8: 1.355932203 | S8: 7.423728814 | T8: 7.423728814 | U8: 7.423728814 | V8: 70.45 | W8: 129 | X8: 12715.71429 | Y8: 15222 | Z8: 20640 | AA8: 113004 | AB8: 113004
A9: B00522 | B9: 湖水蓝小版 | C9: B11109H3S | D9: B00522湖水蓝小版 | E9: 21 | F9: 225 | G9: 246 | H9: 5 | I9: 33 | J9: 21.42857143 | M9: 0.98 | N9: 11.48 | O9: 11.48 | P9: 11.48 | Q9: 一级爆款 | R9: 0.6363636364 | S9: 7.454545455 | T9: 7.454545455 | U9: 7.454545455 | V9: 54.45 | W9: 109 | X9: 2335.714286 | Y9: 3597 | Z9: 2289 | AA9: 26814 | AB9: 26814
A10: B00522 | B10: 酱紫色大版 | C10: B111097L | D10: B00522酱紫色大版 | E10: 3 | F10: 874 | G10: 877 | H10: 30 | I10: 145 | J10: 128.5714286 | M10: 0.02333333333 | N10: 6.821111111 | O10: 6.821111111 | P10: 6.821111111 | Q10: 一级爆款 | R10: 0.02068965517 | S10: 6.048275862 | T10: 6.048275862 | U10: 6.048275862 | V10: 70.45 | W10: 115 | X10: 14785.71429 | Y10: 16675 | Z10: 345 | AA10: 100855 | AB10: 100855
A11: B00522 | B11: 酱紫色小版 | C11: B111097S | D11: B00522酱紫色小版 | E11: 105 | F11: 460 | G11: 565 | H11: 21 | I11: 91 | J11: 90 | M11: 1.166666667 | N11: 6.277777778 | O11: 6.277777778 | P11: 6.277777778 | Q11: 一级爆款 | R11: 1.153846154 | S11: 6.208791209 | T11: 6.208791209 | U11: 6.208791209 | V11: 54.45 | W11: 95 | X11: 8550 | Y11: 8645 | Z11: 9975 | AA11: 53675 | AB11: 53675
A12: B00522 | B12: 玫红色大版 | C12: B11109M1L | D12: B00522玫红色大版 | E12: -15 | F12: 1406 | G12: 1391 | H12: 32 | I12: 196 | J12: 137.1428571 | M12: -0.109375 | N12: 10.14270833 | O12: 10.14270833 | P12: 10.14270833 | Q12: 一级爆款 | R12: -0.07653061224 | S12: 7.096938776 | T12: 7.096938776 | U12: 7.096938776 | V12: 70.45 | W12: 129 | X12: 17691.42857 | Y12: 25284 | Z12: -1935 | AA12: 179439 | AB12: 179439
A13: B00522 | B13: 玫红色小版 | C13: B11109M1S | D13: B00522玫红色小版 | E13: 66 | F13: 448 | G13: 514 | H13: 20 | I13: 108 | J13: 85.71428571 | M13: 0.77 | N13: 5.996666667 | O13: 5.996666667 | P13: 5.996666667 | Q13: 一级爆款 | R13: 0.6111111111 | S13: 4.759259259 | T13: 4.759259259 | U13: 4.759259259 | V13: 54.45 | W13: 109 | X13: 9342.857143 | Y13: 11772 | Z13: 7194 | AA13: 56026 | AB13: 56026
A14: B00522 | B14: 苹果绿大版 | C14: B111096L | D14: B00522苹果绿大版 | E14: 99 | F14: 369 | G14: 468 | H14: 10 | I14: 57 | J14: 42.85714286 | M14: 2.31 | N14: 10.92 | O14: 10.92 | P14: 10.92 | Q14: 一级爆款 | R14: 1.736842105 | S14: 8.210526316 | T14: 8.210526316 | U14: 8.210526316 | V14: 76.95 | W14: 129 | X14: 5528.571429 | Y14: 7353 | Z14: 12771 | AA14: 60372 | AB14: 60372
A15: B00522 | B15: 苹果绿小版 | C15: B111096S | D15: B00522苹果绿小版 | E15: 48 | F15: 100 | G15: 148 | H15: 6 | I15: 27 | J15: 25.71428571 | M15: 1.866666667 | N15: 5.755555556 | O15: 5.755555556 | P15: 5.755555556 | Q15: 一级爆款 | R15: 1.777777778 | S15: 5.481481481 | T15: 5.481481481 | U15: 5.481481481 | V15: 59.95 | W15: 109 | X15: 2802.857143 | Y15: 2943 | Z15: 5232 | AA15: 16132 | AB15: 16132
A16: B00522 | B16: 浅米杏大版 | C16: B111094L | D16: B00522浅米杏大版 | E16: 128 | F16: 492 | G16: 620 | H16: 17 | I16: 78 | J16: 72.85714286 | M16: 1.756862745 | N16: 8.509803922 | O16: 8.509803922 | P16: 8.509803922 | Q16: 一级爆款 | R16: 1.641025641 | S16: 7.948717949 | T16: 7.948717949 | U16: 7.948717949 | V16: 70.45 | W16: 129 | X16: 9398.571429 | Y16: 10062 | Z16: 16512 | AA16: 79980 | AB16: 79980
A17: B00522 | B17: 浅米杏小版 | C17: B111094S | D17: B00522浅米杏小版 | E17: 96 | F17: 100 | G17: 196 | H17: 6 | I17: 30 | J17: 25.71428571 | M17: 3.733333333 | N17: 7.622222222 | O17: 7.622222222 | P17: 7.622222222 | Q17: 一级爆款 | R17: 3.2 | S17: 6.533333333 | T17: 6.533333333 | U17: 6.533333333 | V17: 54.45 | W17: 109 | X17: 2802.857143 | Y17: 3270 | Z17: 10464 | AA17: 21364 | AB17: 21364
A18: B00522 | B18: 棕黄大版 | C18: B111092L | D18: B00522棕黄大版 | E18: 771 | F18: 2974 | G18: 3745 | H18: 81 | I18: 399 | J18: =H18/7*30 -> 347.1428571 | M18: 2.220987654 | N18: 10.78806584 | O18: 10.78806584 | P18: 10.78806584 | Q18: 一级爆款 | R18: 1.932330827 | S18: 9.385964912 | T18: 9.385964912 | U18: 9.385964912 | V18: 70.45 | W18: 115 | X18: 39921.42857 | Y18: 45885 | Z18: 88665 | AA18: 430675 | AB18: 430675
A19: B00522 | B19: 棕黄小版 | C19: B111092S | D19: B00522棕黄小版 | E19: 559 | F19: 1280 | G19: 1839 | H19: 28 | I19: 167 | J19: 120 | M19: 4.658333333 | N19: 15.325 | O19: 15.325 | P19: 15.325 | Q19: 一级爆款 | R19: 3.347305389 | S19: 11.01197605 | T19: 11.01197605 | U19: 11.01197605 | V19: 54.45 | W19: 95 | X19: 11400 | Y19: 15865 | Z19: 53105 | AA19: 174705 | AB19: 174705
A20: B012706 | B20: 优雅杏 | C20: B111164L | D20: B012706优雅杏 | E20: 1 | F20: 0 | G20: 1 | H20: 0 | I20: 0 | J20: 0 | M20: 1 | N20: 1 | O20: 1 | P20: 1 | Q20: 做完不做 | R20: 1 | S20: 1 | T20: 1 | U20: 1 | V20: 220 | W20: 568 | X20: 0 | Y20: 0 | Z20: 568 | AA20: 568 | AB20: 568
A21: B080202 | B21: 湖水绿 | C21: B110036 | D21: B080202湖水绿 | E21: 1 | F21: 0 | G21: 1 | H21: 0 | I21: 1 | J21: 0 | M21: 1 | N21: 1 | O21: 1 | P21: 1 | Q21: 做完不做 | R21: 1 | S21: 1 | T21: 1 | U21: 1 | V21: 158 | W21: 349 | X21: 0 | Y21: 349 | Z21: 349 | AA21: 349 | AB21: 349
A22: C032901 | B22: 优雅杏 | C22: B111184 | D22: C032901优雅杏 | E22: 1 | F22: 0 | G22: 1 | H22: 0 | I22: 0 | J22: 0 | M22: 1 | N22: 1 | O22: 1 | P22: 1 | Q22: 做完不做 | R22: 1 | S22: 1 | T22: 1 | U22: 1 | V22: 251.5 | W22: 545 | X22: 0 | Y22: 0 | Z22: 545 | AA22: 545 | AB22: 545
A23: D070502 | B23: 迷你版优雅杏 | C23: D110064S | D23: D070502迷你版优雅杏 | E23: 2 | F23: 0 | G23: 2 | H23: 0 | I23: 0 | J23: 0 | M23: 2 | N23: 2 | O23: 2 | P23: 2 | Q23: 做完不做 | R23: 2 | S23: 2 | T23: 2 | U23: 2 | V23: 304 | W23: 419 | X23: 0 | Y23: 0 | Z23: 838 | AA23: 838 | AB23: 838
A24: D070502 | B24: 小版玫红色 | C24: D11006M1S | D24: D070502小版玫红色 | E24: 1 | F24: 0 | G24: 1 | H24: 0 | I24: 0 | J24: 0 | M24: 1 | N24: 1 | O24: 1 | P24: 1 | Q24: 做完不做 | R24: 1 | S24: 1 | T24: 1 | U24: 1 | V24: 350 | W24: 439 | X24: 0 | Y24: 0 | Z24: 439 | AA24: 439 | AB24: 439
A25: D070502 | B25: 小版梦幻紫 | C25: D110067S | D25: D070502小版梦幻紫 | E25: 1 | F25: 0 | G25: 1 | H25: 0 | I25: 0 | J25: 0 | M25: 1 | N25: 1 | O25: 1 | P25: 1 | Q25: 做完不做 | R25: 1 | S25: 1 | T25: 1 | U25: 1 | V25: 350 | W25: 439 | X25: 0 | Y25: 0 | Z25: 439 | AA25: 439 | AB25: 439
A26: D070502 | B26: 小版深海蓝 | C26: D110063M | D26: D070502小版深海蓝 | E26: 1 | F26: 0 | G26: 1 | H26: 0 | I26: 1 | J26: 0 | M26: 1 | N26: 1 | O26: 1 | P26: 1 | Q26: 做完不做 | R26: 1 | S26: 1 | T26: 1 | U26: 1 | V26: 290 | W26: 439 | X26: 0 | Y26: 439 | Z26: 439 | AA26: 439 | AB26: 439
A27: D070502 | B27: 小版樱花粉 | C27: D11006AM | D27: D070502小版樱花粉 | E27: 307 | F27: 0 | G27: 307 | H27: 13 | I27: 45 | J27: 55.71428571 | M27: 5.51025641 | N27: 5.51025641 | O27: 5.51025641 | P27: 5.51025641 | Q27: 做完不做 | R27: 6.822222222 | S27: 6.822222222 | T27: 6.822222222 | U27: 6.822222222 | V27: 337 | W27: 499 | X27: 27801.42857 | Y27: 22455 | Z27: 153193 | AA27: 153193 | AB27: 153193
A28: D070502 | B28: 小版优雅杏 | C28: D110064M | D28: D070502小版优雅杏 | E28: 4 | F28: 0 | G28: 4 | H28: 0 | I28: 0 | J28: 0 | M28: 4 | N28: 4 | O28: 4 | P28: 4 | Q28: 做完不做 | R28: 4 | S28: 4 | T28: 4 | U28: 4 | V28: 290 | W28: 439 | X28: 0 | Y28: 0 | Z28: 1756 | AA28: 1756 | AB28: 1756
A29: D082302 | B29: 浓醇棕 | C29: D110122 | D29: D082302浓醇棕 | E29: 0 | F29: 0 | G29: 0 | H29: 0 | I29: 0 | J29: 0 | M29: 0 | N29: 0 | O29: 0 | P29: 0 | Q29: 做完不做 | R29: 0 | S29: 0 | T29: 0 | U29: 0 | V29: 238 | W29: 586 | X29: 0 | Y29: 0 | Z29: 0 | AA29: 0 | AB29: 0
A30: D082302 | B30: 子夜黑 | C30: D110100 | D30: D082302子夜黑 | E30: 3 | F30: 0 | G30: 3 | H30: 1 | I30: 1 | J30: 4.285714286 | M30: 0.7 | N30: 0.7 | O30: 0.7 | P30: 0.7 | Q30: 做完不做 | R30: 3 | S30: 3 | T30: 3 | U30: 3 | V30: 238 | W30: 586 | X30: 2511.428571 | Y30: 586 | Z30: 1758 | AA30: 1758 | AB30: 1758
A31: D082304 | B31: 浓醇棕 | C31: D110142 | D31: D082304浓醇棕 | E31: 0 | F31: 0 | G31: 0 | H31: 3 | I31: 3 | J31: 12.85714286 | M31: 0 | N31: 0 | O31: 0 | P31: 0 | Q31: 做完不做 | R31: 0 | S31: 0 | T31: 0 | U31: 0 | V31: 50 | W31: 116 | X31: 1491.428571 | Y31: 348 | Z31: 0 | AA31: 0 | AB31: 0
A32: D082304 | B32: 子夜黑 | C32: D110140 | D32: D082304子夜黑 | E32: 24 | F32: 0 | G32: 24 | H32: 3 | I32: 3 | J32: 12.85714286 | M32: 1.866666667 | N32: 1.866666667 | O32: 1.866666667 | P32: 1.866666667 | Q32: 做完不做 | R32: 8 | S32: 8 | T32: 8 | U32: 8 | V32: 50 | W32: 116 | X32: 1491.428571 | Y32: 348 | Z32: 2784 | AA32: 2784 | AB32: 2784
A33: F4041229 | B33: 藕粉色 | C33: F4041229A | D33: F4041229藕粉色 | E33: 1 | F33: 0 | G33: 1 | H33: 0 | I33: 0 | J33: 0 | M33: 1 | N33: 1 | O33: 1 | P33: 1 | Q33: 做完不做 | R33: 1 | S33: 1 | T33: 1 | U33: 1 | V33: 247 | W33: 499 | X33: 0 | Y33: 0 | Z33: 499 | AA33: 499 | AB33: 499
A34: F4041229 | B34: 宝石绿 | C34: F40412296 | D34: F4041229宝石绿 | E34: 1 | F34: 0 | G34: 1 | H34: 0 | I34: 0 | J34: 0 | M34: 1 | N34: 1 | O34: 1 | P34: 1 | Q34: 做完不做 | R34: 1 | S34: 1 | T34: 1 | U34: 1 | V34: 247 | W34: 499 | X34: 0 | Y34: 0 | Z34: 499 | AA34: 499 | AB34: 499
A35: F4041229 | B35: 香妃橙 | C35: F4041229B | D35: F4041229香妃橙 | E35: 0 | F35: 0 | G35: 0 | H35: 1 | I35: 1 | J35: 4.285714286 | M35: 0 | N35: 0 | O35: 0 | P35: 0 | Q35: 做完不做 | R35: 0 | S35: 0 | T35: 0 | U35: 0 | V35: 247 | W35: 499 | X35: 2138.571429 | Y35: 499 | Z35: 0 | AA35: 0 | AB35: 0
A36: G4072901 | B36: 薰衣草紫 | C36: G407107 | D36: G4072901薰衣草紫 | E36: 81 | F36: 3 | G36: 84 | H36: 15 | I36: 15 | J36: 64.28571429 | M36: 1.26 | N36: 1.306666667 | O36: 1.306666667 | P36: 1.306666667 | Q36: 新款 | R36: 5.4 | S36: 5.6 | T36: 5.6 | U36: 5.6 | V36: 376 | W36: 699 | X36: 44935.71429 | Y36: 10485 | Z36: 56619 | AA36: 58716 | AB36: 58716
A37: G4072901 | B37: 子夜黑 | C37: G407100 | D37: G4072901子夜黑 | E37: 30 | F37: 2 | G37: 32 | H37: 19 | I37: 19 | J37: 81.42857143 | M37: 0.3684210526 | N37: 0.3929824561 | O37: 0.3929824561 | P37: 0.3929824561 | Q37: 新款 | R37: 1.578947368 | S37: 1.684210526 | T37: 1.684210526 | U37: 1.684210526 | V37: 376 | W37: 699 | X37: 56918.57143 | Y37: 13281 | Z37: 20970 | AA37: 22368 | AB37: 22368
A38: G4072901 | B38: 芭比粉 | C38: G40710A | D38: =A38&B38 -> G4072901芭比粉 | E38: 55 | F38: 8 | G38: =E38+F38 -> 63 | H38: 17 | I38: 17 | J38: =H38/7*30 -> 72.85714286 | M38: =IF(J38=0,E38,E38/J38) -> 0.7549019608 | N38: =IF(J38=0,G38,G38/J38) -> 0.8647058824 | O38: 0.8647058824 | P38: 0.8647058824 | Q38: 新款 | R38: =IF(I38=0,E38,E38/I38) -> 3.235294118 | S38: =IF(I38=0,G38,G38/I38) -> 3.705882353 | T38: 3.705882353 | U38: 3.705882353 | V38: 376 | W38: 699 | X38: 50927.14286 | Y38: 11883 | Z38: 38445 | AA38: 44037 | AB38: 44037
A39: G4072901 | B39: 柠檬黄 | C39: G407105 | D39: G4072901柠檬黄 | E39: 82 | F39: 3 | G39: 85 | H39: 8 | I39: 8 | J39: 34.28571429 | M39: 2.391666667 | N39: 2.479166667 | O39: 2.479166667 | P39: 2.479166667 | Q39: 新款 | R39: 10.25 | S39: 10.625 | T39: 10.625 | U39: 10.625 | V39: 376 | W39: 699 | X39: 23965.71429 | Y39: 5592 | Z39: 57318 | AA39: 59415 | AB39: 59415
A40: G4072901 | B40: 希腊蓝 | C40: G407103 | D40: G4072901希腊蓝 | E40: 67 | F40: 2 | G40: 69 | H40: 21 | I40: 21 | J40: 90 | M40: 0.7444444444 | N40: 0.7666666667 | O40: 0.7666666667 | P40: 0.7666666667 | Q40: 新款 | R40: 3.19047619 | S40: 3.285714286 | T40: 3.285714286 | U40: 3.285714286 | V40: 376 | W40: 699 | X40: 62910 | Y40: 14679 | Z40: 46833 | AA40: 48231 | AB40: 48231
A41: G4072902 | B41: 子夜黑 | C41: G407110 | D41: G4072902子夜黑 | E41: -17 | F41: 130 | G41: 113 | H41: 4 | I41: 16 | J41: 17.14285714 | M41: -0.9916666667 | N41: 6.591666667 | O41: 6.591666667 | P41: 6.591666667 | Q41: 新款 | R41: -1.0625 | S41: 7.0625 | T41: 7.0625 | U41: 7.0625 | V41: 326 | W41: 699 | X41: 11982.85714 | Y41: 11184 | Z41: -11883 | AA41: 78987 | AB41: 78987
A42: G4072902 | B42: 木莓红 | C42: G407111 | D42: G4072902木莓红 | E42: -49 | F42: 250 | G42: 201 | H42: 17 | I42: 47 | J42: 72.85714286 | M42: -0.6725490196 | N42: 2.758823529 | O42: 2.758823529 | P42: 2.758823529 | Q42: 新款 | R42: -1.042553191 | S42: 4.276595745 | T42: 4.276595745 | U42: 4.276595745 | V42: 326 | W42: 699 | X42: 50927.14286 | Y42: 32853 | Z42: -34251 | AA42: 140499 | AB42: 140499
A43: H040702 | B43: 焦糖咖 | C43: D111489 | D43: H040702焦糖咖 | E43: 0 | F43: 0 | G43: 0 | H43: 0 | I43: 1 | J43: 0 | M43: 0 | N43: 0 | O43: 0 | P43: 0 | Q43: 做完不做 | R43: 0 | S43: 0 | T43: 0 | U43: 0 | V43: 399 | W43: 615 | X43: 0 | Y43: 615 | Z43: 0 | AA43: 0 | AB43: 0
A44: H3090301 | B44: 子夜黑 | C44: H309010 | D44: H3090301子夜黑 | E44: 0 | F44: 0 | G44: 0 | H44: 0 | I44: 3 | J44: 0 | M44: 0 | N44: 0 | O44: 0 | P44: 0 | Q44: 三级爆款 | R44: 0 | S44: 0 | T44: 0 | U44: 0 | V44: 231 | W44: 399 | X44: 0 | Y44: 1197 | Z44: 0 | AA44: 0 | AB44: 0
A45: H3090301 | B45: 皇家紫 | C45: H309017 | D45: H3090301皇家紫 | E45: 46 | F45: 1110 | G45: 1156 | H45: 22 | I45: 67 | J45: 94.28571429 | M45: 0.4878787879 | N45: 12.26060606 | O45: 12.26060606 | P45: 12.26060606 | Q45: 三级爆款 | R45: 0.6865671642 | S45: 17.25373134 | T45: 17.25373134 | U45: 17.25373134 | V45: 231 | W45: 399 | X45: 37620 | Y45: 26733 | Z45: 18354 | AA45: 461244 | AB45: 461244
A46: H3090301 | B46: 樱桃红 | C46: H309011 | D46: H3090301樱桃红 | E46: -12 | F46: 330 | G46: 318 | H46: 7 | I46: 12 | J46: 30 | M46: -0.4 | N46: 10.6 | O46: 10.6 | P46: 10.6 | Q46: 三级爆款 | R46: -1 | S46: 26.5 | T46: 26.5 | U46: 26.5 | V46: 231 | W46: 399 | X46: 11970 | Y46: 4788 | Z46: -4788 | AA46: 126882 | AB46: 126882
A47: H3090301 | B47: 鲜梨黄 | C47: H309015 | D47: H3090301鲜梨黄 | E47: 37 | F47: 44 | G47: 81 | H47: 3 | I47: 12 | J47: 12.85714286 | M47: 2.877777778 | N47: 6.3 | O47: 6.3 | P47: 6.3 | Q47: 三级爆款 | R47: 3.083333333 | S47: 6.75 | T47: 6.75 | U47: 6.75 | V47: 231 | W47: 399 | X47: 5130 | Y47: 4788 | Z47: 14763 | AA47: 32319 | AB47: 32319
A48: H3121202 | B48: 兰花紫 | C48: H312037 | D48: H3121202兰花紫 | E48: 28 | F48: 0 | G48: 28 | H48: 1 | I48: 8 | J48: 4.285714286 | M48: 6.533333333 | N48: 6.533333333 | O48: 6.533333333 | P48: 6.533333333 | Q48: 做完不做 | R48: 3.5 | S48: 3.5 | T48: 3.5 | U48: 3.5 | V48: 275 | W48: 499 | X48: 2138.571429 | Y48: 3992 | Z48: 13972 | AA48: 13972 | AB48: 13972
A49: H3121202 | B49: 香妃橙 | C49: H31203B | D49: H3121202香妃橙 | E49: 1 | F49: 0 | G49: 1 | H49: 0 | I49: 0 | J49: 0 | M49: 1 | N49: 1 | O49: 1 | P49: 1 | Q49: 做完不做 | R49: 1 | S49: 1 | T49: 1 | U49: 1 | V49: 275 | W49: 499 | X49: 0 | Y49: 0 | Z49: 499 | AA49: 499 | AB49: 499
A50: H3121202 | B50: 中国红 | C50: H312031 | D50: H3121202中国红 | E50: 1 | F50: 0 | G50: 1 | H50: 0 | I50: 0 | J50: 0 | M50: 1 | N50: 1 | O50: 1 | P50: 1 | Q50: 做完不做 | R50: 1 | S50: 1 | T50: 1 | U50: 1 | V50: 275 | W50: 499 | X50: 0 | Y50: 0 | Z50: 499 | AA50: 499 | AB50: 499
A51: H3121202 | B51: 宝石绿 | C51: H312036 | D51: H3121202宝石绿 | E51: 1 | F51: 0 | G51: 1 | H51: 0 | I51: 0 | J51: 0 | M51: 1 | N51: 1 | O51: 1 | P51: 1 | Q51: 做完不做 | R51: 1 | S51: 1 | T51: 1 | U51: 1 | V51: 275 | W51: 499 | X51: 0 | Y51: 0 | Z51: 499 | AA51: 499 | AB51: 499
A52: H4041007 | B52: 子夜黑 | C52: H40410070 | D52: H4041007子夜黑 | E52: 0 | F52: 0 | G52: 0 | H52: 0 | I52: 2 | J52: 0 | M52: 0 | N52: 0 | O52: 0 | P52: 0 | Q52: 做完不做 | R52: 0 | S52: 0 | T52: 0 | U52: 0 | V52: 213 | W52: 439 | X52: 0 | Y52: 878 | Z52: 0 | AA52: 0 | AB52: 0
A53: H4041007 | B53: 柠檬黄 | C53: H40410075 | D53: H4041007柠檬黄 | E53: 1 | F53: 0 | G53: 1 | H53: 0 | I53: 0 | J53: 0 | M53: 1 | N53: 1 | O53: 1 | P53: 1 | Q53: 做完不做 | R53: 1 | S53: 1 | T53: 1 | U53: 1 | V53: 213 | W53: 439 | X53: 0 | Y53: 0 | Z53: 439 | AA53: 439 | AB53: 439
A54: H4041126 | B54: 苏格蓝 | C54: H40411263 | D54: H4041126苏格蓝 | E54: 5 | F54: 0 | G54: 5 | H54: 0 | I54: 1 | J54: 0 | M54: 5 | N54: 5 | O54: 5 | P54: 5 | Q54: 做完不做 | R54: 5 | S54: 5 | T54: 5 | U54: 5 | V54: 209 | W54: 399 | X54: 0 | Y54: 399 | Z54: 1995 | AA54: 1995 | AB54: 1995
A55: H4041230 | B55: 子夜黑 | C55: H40412300 | D55: H4041230子夜黑 | E55: 4 | F55: 0 | G55: 4 | H55: 0 | I55: 0 | J55: 0 | M55: 4 | N55: 4 | O55: 4 | P55: 4 | Q55: 做完不做 | R55: 4 | S55: 4 | T55: 4 | U55: 4 | V55: 249 | W55: 499 | X55: 0 | Y55: 0 | Z55: 1996 | AA55: 1996 | AB55: 1996
A56: H4041230 | B56: 兰花紫 | C56: H40412307 | D56: H4041230兰花紫 | E56: 3 | F56: 0 | G56: 3 | H56: 0 | I56: 5 | J56: 0 | M56: 3 | N56: 3 | O56: 3 | P56: 3 | Q56: 做完不做 | R56: 0.6 | S56: 0.6 | T56: 0.6 | U56: 0.6 | V56: 249 | W56: 499 | X56: 0 | Y56: 2495 | Z56: 1497 | AA56: 1497 | AB56: 1497
A57: H4041232 | B57: 粉紫色 | C57: H4041232A7 | D57: H4041232粉紫色 | E57: 0 | F57: 0 | G57: 0 | H57: 1 | I57: 1 | J57: 4.285714286 | M57: 0 | N57: 0 | O57: 0 | P57: 0 | Q57: 做完不做 | R57: 0 | S57: 0 | T57: 0 | U57: 0 | V57: 263 | W57: 499 | X57: 2138.571429 | Y57: 499 | Z57: 0 | AA57: 0 | AB57: 0
A58: H4041245 | B58: 深酒红 | C58: H40412451 | D58: H4041245深酒红 | E58: 0 | F58: 0 | G58: 0 | H58: 0 | I58: 1 | J58: 0 | M58: 0 | N58: 0 | O58: 0 | P58: 0 | Q58: 做完不做 | R58: 0 | S58: 0 | T58: 0 | U58: 0 | V58: 271 | W58: 499 | X58: 0 | Y58: 499 | Z58: 0 | AA58: 0 | AB58: 0
A59: H4041245 | B59: 薰衣草紫 | C59: H40412457 | D59: H4041245薰衣草紫 | E59: 1 | F59: 0 | G59: 1 | H59: 0 | I59: 0 | J59: 0 | M59: 1 | N59: 1 | O59: 1 | P59: 1 | Q59: 做完不做 | R59: 1 | S59: 1 | T59: 1 | U59: 1 | V59: 271 | W59: 499 | X59: 0 | Y59: 0 | Z59: 499 | AA59: 499 | AB59: 499
A60: L2041001 | B60: 卡其色小版 | C60: L20401GS | D60: L2041001卡其色小版 | E60: 1 | F60: 0 | G60: 1 | H60: 0 | I60: 0 | J60: 0 | M60: 1 | N60: 1 | O60: 1 | P60: 1 | Q60: 做完不做 | R60: 1 | S60: 1 | T60: 1 | U60: 1 | V60: 208 | W60: 239.5 | X60: 0 | Y60: 0 | Z60: 239.5 | AA60: 239.5 | AB60: 239.5
A61: L2041002 | B61: 气质黑 | C61: L204020 | D61: L2041002气质黑 | E61: 359 | F61: 670 | G61: 1029 | H61: 58 | I61: 203 | J61: 248.5714286 | M61: 1.444252874 | N61: 4.139655172 | O61: 4.139655172 | P61: 4.139655172 | Q61: 三级爆款 | R61: 1.768472906 | S61: 5.068965517 | T61: 5.068965517 | U61: 5.068965517 | V61: 190 | W61: 439 | X61: 109122.8571 | Y61: 89117 | Z61: 157601 | AA61: 451731 | AB61: 451731
A62: L2041002 | B62: 枣红色 | C62: L204021 | D62: L2041002枣红色 | E62: 130 | F62: 100 | G62: 230 | H62: 11 | I62: 45 | J62: 47.14285714 | M62: 2.757575758 | N62: 4.878787879 | O62: 4.878787879 | P62: 4.878787879 | Q62: 三级爆款 | R62: 2.888888889 | S62: 5.111111111 | T62: 5.111111111 | U62: 5.111111111 | V62: 190 | W62: 439 | X62: 20695.71429 | Y62: 19755 | Z62: 57070 | AA62: 100970 | AB62: 100970
A63: L2041004 | B63: 藏青色 | C63: L204043 | D63: L2041004藏青色 | E63: 240 | F63: 350 | G63: 590 | H63: 39 | I63: 129 | J63: 167.1428571 | M63: 1.435897436 | N63: 3.52991453 | O63: 3.52991453 | P63: 3.52991453 | Q63: 三级爆款 | R63: 1.860465116 | S63: 4.573643411 | T63: 4.573643411 | U63: 4.573643411 | V63: 180 | W63: 399 | X63: 66690 | Y63: 51471 | Z63: 95760 | AA63: 235410 | AB63: 235410
A64: L2041004 | B64: 气质黑 | C64: L204040 | D64: L2041004气质黑 | E64: 76 | F64: 0 | G64: 76 | H64: 1 | I64: 18 | J64: 4.285714286 | M64: 17.73333333 | N64: 17.73333333 | O64: 17.73333333 | P64: 17.73333333 | Q64: 三级爆款 | R64: 4.222222222 | S64: 4.222222222 | T64: 4.222222222 | U64: 4.222222222 | V64: 180 | W64: 399 | X64: 1710 | Y64: 7182 | Z64: 30324 | AA64: 30324 | AB64: 30324
A65: L2041004 | B65: 枣红色 | C65: L204041 | D65: L2041004枣红色 | E65: 63 | F65: 0 | G65: 63 | H65: 5 | I65: 12 | J65: 21.42857143 | M65: 2.94 | N65: 2.94 | O65: 2.94 | P65: 2.94 | Q65: 三级爆款 | R65: 5.25 | S65: 5.25 | T65: 5.25 | U65: 5.25 | V65: 180 | W65: 399 | X65: 8550 | Y65: 4788 | Z65: 25137 | AA65: 25137 | AB65: 25137
A66: L2041006 | B66: 藏青色 | C66: L204063 | D66: L2041006藏青色 | E66: 83 | F66: 50 | G66: 133 | H66: 7 | I66: 20 | J66: 30 | M66: 2.766666667 | N66: 4.433333333 | O66: =IF(J66=0,G66,(G66+K66)/J66) -> 4.433333333 | P66: =IF(J66=0,G66,(G66+K66+L66)/J66) -> 4.433333333 | Q66: 三级爆款 | R66: 4.15 | S66: 6.65 | T66: =IF(I66=0,K66+G66,(K66+G66)/I66) -> 6.65 | U66: =IF(I66=0,G66,(K66+G66+L66)/I66) -> 6.65 | V66: 50 | W66: 99 | X66: =W66*J66 -> 2970 | Y66: =W66*I66 -> 1980 | Z66: =W66*E66 -> 8217 | AA66: =G66*W66 -> 13167 | AB66: =(G66+K66+L66)*W66 -> 13167
A67: L2041006 | B67: 玫红色 | C67: L20406M1 | D67: L2041006玫红色 | E67: 394 | F67: 600 | G67: 994 | H67: 26 | I67: 109 | J67: 111.4285714 | M67: 3.535897436 | N67: 8.920512821 | O67: 8.920512821 | P67: 8.920512821 | Q67: 三级爆款 | R67: 3.614678899 | S67: 9.119266055 | T67: 9.119266055 | U67: 9.119266055 | V67: 50 | W67: 99 | X67: 11031.42857 | Y67: 10791 | Z67: 39006 | AA67: 98406 | AB67: 98406
A68: L2041006 | B68: 气质黑 | C68: L204060 | D68: L2041006气质黑 | E68: 181 | F68: 50 | G68: 231 | H68: 5 | I68: 30 | J68: 21.42857143 | M68: 8.446666667 | N68: 10.78 | O68: 10.78 | P68: 10.78 | Q68: 三级爆款 | R68: 6.033333333 | S68: 7.7 | T68: 7.7 | U68: 7.7 | V68: 50 | W68: 99 | X68: 2121.428571 | Y68: 2970 | Z68: 17919 | AA68: 22869 | AB68: 22869
A69: L2041006 | B69: 枣红色 | C69: L204061 | D69: L2041006枣红色 | E69: 184 | F69: 0 | G69: 184 | H69: 12 | I69: 38 | J69: 51.42857143 | M69: 3.577777778 | N69: 3.577777778 | O69: 3.577777778 | P69: 3.577777778 | Q69: 三级爆款 | R69: 4.842105263 | S69: 4.842105263 | T69: 4.842105263 | U69: 4.842105263 | V69: 50 | W69: 99 | X69: 5091.428571 | Y69: 3762 | Z69: 18216 | AA69: 18216 | AB69: 18216
A70: L2061203 | B70: 湖水绿 | C70: L206056 | D70: L2061203湖水绿 | E70: 2 | F70: 0 | G70: 2 | H70: 0 | I70: 0 | J70: 0 | M70: 2 | N70: 2 | O70: 2 | P70: 2 | Q70: 做完不做 | R70: 2 | S70: 2 | T70: 2 | U70: 2 | V70: 215 | W70: 469 | X70: 0 | Y70: 0 | Z70: 938 | AA70: 938 | AB70: 938
A71: L2073102 | B71: 电光蓝 | C71: L207123 | D71: L2073102电光蓝 | E71: 183 | F71: 230 | G71: 413 | H71: 53 | I71: 167 | J71: 227.1428571 | M71: 0.8056603774 | N71: 1.818238994 | O71: 1.818238994 | P71: 1.818238994 | Q71: 二级爆款 | R71: 1.095808383 | S71: 2.473053892 | T71: 2.473053892 | U71: 2.473053892 | V71: 177 | W71: 399 | X71: 90630 | Y71: 66633 | Z71: 73017 | AA71: 164787 | AB71: 164787
A72: L2073102 | B72: 玫红色 | C72: L20712M1 | D72: L2073102玫红色 | E72: 56 | F72: 280 | G72: 336 | H72: 29 | I72: 136 | J72: 124.2857143 | M72: 0.4505747126 | N72: 2.703448276 | O72: 2.703448276 | P72: 2.703448276 | Q72: 二级爆款 | R72: 0.4117647059 | S72: 2.470588235 | T72: 2.470588235 | U72: 2.470588235 | V72: 177 | W72: 399 | X72: 49590 | Y72: 54264 | Z72: 22344 | AA72: 134064 | AB72: 134064
A73: L2073102 | B73: 子夜黑 | C73: L207120 | D73: L2073102子夜黑 | E73: -19 | F73: 640 | G73: 621 | H73: 21 | I73: 176 | J73: 90 | M73: -0.2111111111 | N73: 6.9 | O73: 6.9 | P73: 6.9 | Q73: 二级爆款 | R73: -0.1079545455 | S73: 3.528409091 | T73: 3.528409091 | U73: 3.528409091 | V73: 177 | W73: 399 | X73: 35910 | Y73: 70224 | Z73: -7581 | AA73: 247779 | AB73: 247779
A74: L3070202 | B74: 青柠黄 | C74: L307025 | D74: L3070202青柠黄 | E74: 1 | F74: 0 | G74: 1 | H74: 0 | I74: 0 | J74: 0 | M74: 1 | N74: 1 | O74: 1 | P74: 1 | Q74: 做完不做 | R74: 1 | S74: 1 | T74: 1 | U74: 1 | V74: 45 | W74: 89 | X74: 0 | Y74: 0 | Z74: 89 | AA74: 89 | AB74: 89
A75: L3092401 | B75: 子夜黑 | C75: L309120 | D75: L3092401子夜黑 | E75: 12 | F75: 0 | G75: 12 | H75: 0 | I75: 0 | J75: 0 | M75: 12 | N75: 12 | O75: 12 | P75: 12 | Q75: 做完不做 | R75: 12 | S75: 12 | T75: 12 | U75: 12 | V75: 272 | W75: 499 | X75: 0 | Y75: 0 | Z75: 5988 | AA75: 5988 | AB75: 5988
A76: L3092401 | B76: 烟灰色 | C76: L309128 | D76: L3092401烟灰色 | E76: 14 | F76: 0 | G76: 14 | H76: 0 | I76: 0 | J76: 0 | M76: 14 | N76: 14 | O76: 14 | P76: 14 | Q76: 做完不做 | R76: 14 | S76: 14 | T76: 14 | U76: 14 | V76: 272 | W76: 499 | X76: 0 | Y76: 0 | Z76: 6986 | AA76: 6986 | AB76: 6986
A77: L3092401 | B77: 优雅杏 | C77: L309124 | D77: L3092401优雅杏 | E77: 18 | F77: 0 | G77: 18 | H77: 0 | I77: 0 | J77: 0 | M77: 18 | N77: 18 | O77: 18 | P77: 18 | Q77: 做完不做 | R77: 18 | S77: 18 | T77: 18 | U77: 18 | V77: 272 | W77: 499 | X77: 0 | Y77: 0 | Z77: 8982 | AA77: 8982 | AB77: 8982
A78: L4040101 | B78: 蜜枣红 | C78: L404011 | D78: L4040101蜜枣红 | E78: 141 | F78: 0 | G78: 141 | H78: 1 | I78: 17 | J78: 4.285714286 | M78: 32.9 | N78: 32.9 | O78: 32.9 | P78: 32.9 | Q78: 做完不做 | R78: 8.294117647 | S78: 8.294117647 | T78: 8.294117647 | U78: 8.294117647 | V78: 246 | W78: 569 | X78: 2438.571429 | Y78: 9673 | Z78: 80229 | AA78: 80229 | AB78: 80229
A79: L4040101 | B79: 卡布奇诺 | C79: L404014 | D79: L4040101卡布奇诺 | E79: 5 | F79: 0 | G79: 5 | H79: 2 | I79: 3 | J79: 8.571428571 | M79: 0.5833333333 | N79: 0.5833333333 | O79: 0.5833333333 | P79: 0.5833333333 | Q79: 做完不做 | R79: 1.666666667 | S79: 1.666666667 | T79: 1.666666667 | U79: 1.666666667 | V79: 246 | W79: 569 | X79: 4877.142857 | Y79: 1707 | Z79: 2845 | AA79: 2845 | AB79: 2845
A80: L4041121 | B80: 复古棕拼色 | C80: L40411212 | D80: L4041121复古棕拼色 | E80: 9 | F80: 0 | G80: 9 | H80: 0 | I80: 1 | J80: 0 | M80: 9 | N80: 9 | O80: 9 | P80: 9 | Q80: 做完不做 | R80: 9 | S80: 9 | T80: 9 | U80: 9 | V80: 238 | W80: 469 | X80: 0 | Y80: 469 | Z80: 4221 | AA80: 4221 | AB80: 4221
A81: L4041204 | B81: 青柠黄 | C81: L40412045 | D81: L4041204青柠黄 | E81: 0 | F81: 0 | G81: 0 | H81: 1 | I81: 1 | J81: 4.285714286 | M81: 0 | N81: 0 | O81: 0 | P81: 0 | Q81: 做完不做 | R81: 0 | S81: 0 | T81: 0 | U81: 0 | V81: 150 | W81: 329 | X81: 1410 | Y81: 329 | Z81: 0 | AA81: 0 | AB81: 0
A82: L4041204 | B82: 薄荷绿 | C82: L40412046 | D82: L4041204薄荷绿 | E82: 0 | F82: 0 | G82: 0 | H82: 1 | I82: 1 | J82: 4.285714286 | M82: 0 | N82: 0 | O82: 0 | P82: 0 | Q82: 做完不做 | R82: 0 | S82: 0 | T82: 0 | U82: 0 | V82: 150 | W82: 329 | X82: 1410 | Y82: 329 | Z82: 0 | AA82: 0 | AB82: 0
A83: L4041204 | B83: 玫红色 | C83: L40412041 | D83: L4041204玫红色 | E83: 1 | F83: 0 | G83: 1 | H83: 1 | I83: 1 | J83: 4.285714286 | M83: 0.2333333333 | N83: 0.2333333333 | O83: 0.2333333333 | P83: 0.2333333333 | Q83: 做完不做 | R83: 1 | S83: 1 | T83: 1 | U83: 1 | V83: 150 | W83: 329 | X83: 1410 | Y83: 329 | Z83: 329 | AA83: 329 | AB83: 329
A84: L4041205 | B84: 玫红色 | C84: L40412051 | D84: L4041205玫红色 | E84: 0 | F84: 0 | G84: 0 | H84: 0 | I84: 0 | J84: 0 | M84: 0 | N84: 0 | O84: 0 | P84: 0 | Q84: 做完不做 | R84: 0 | S84: 0 | T84: 0 | U84: 0 | V84: 57 | W84: 129 | X84: 0 | Y84: 0 | Z84: 0 | AA84: 0 | AB84: 0
A85: L4041233 | B85: 西瓜红 | C85: L40412331 | D85: L4041233西瓜红 | E85: 1 | F85: 0 | G85: 1 | H85: 1 | I85: 1 | J85: 4.285714286 | M85: 0.2333333333 | N85: 0.2333333333 | O85: 0.2333333333 | P85: 0.2333333333 | Q85: 做完不做 | R85: 1 | S85: 1 | T85: 1 | U85: 1 | V85: 193 | W85: 399 | X85: 1710 | Y85: 399 | Z85: 399 | AA85: 399 | AB85: 399
A86: L4042104 | B86: 子夜黑 | C86: L404080 | D86: L4042104子夜黑 | E86: 86 | F86: 210 | G86: 296 | H86: 12 | I86: 50 | J86: 51.42857143 | M86: 1.672222222 | N86: 5.755555556 | O86: 5.755555556 | P86: 5.755555556 | Q86: 三级爆款 | R86: 1.72 | S86: 5.92 | T86: 5.92 | U86: 5.92 | V86: 175 | W86: 399 | X86: 20520 | Y86: 19950 | Z86: 34314 | AA86: 118104 | AB86: 118104
A87: L4042104 | B87: 电光蓝 | C87: L404083 | D87: L4042104电光蓝 | E87: 191 | F87: 80 | G87: 271 | H87: 16 | I87: 58 | J87: 68.57142857 | M87: 2.785416667 | N87: 3.952083333 | O87: 3.952083333 | P87: 3.952083333 | Q87: 三级爆款 | R87: 3.293103448 | S87: 4.672413793 | T87: 4.672413793 | U87: 4.672413793 | V87: 175 | W87: 399 | X87: 27360 | Y87: 23142 | Z87: 76209 | AA87: 108129 | AB87: 108129
A88: L4042104 | B88: 樱花粉 | C88: L40408A | D88: L4042104樱花粉 | E88: 162 | F88: 140 | G88: 302 | H88: 9 | I88: 45 | J88: 38.57142857 | M88: 4.2 | N88: 7.82962963 | O88: 7.82962963 | P88: 7.82962963 | Q88: 三级爆款 | R88: 3.6 | S88: 6.711111111 | T88: 6.711111111 | U88: 6.711111111 | V88: 175 | W88: 399 | X88: 15390 | Y88: 17955 | Z88: 64638 | AA88: 120498 | AB88: 120498
A89: L4052701 | B89: 麦香米 | C89: L40510K | D89: L4052701麦香米 | E89: 47 | F89: 0 | G89: 47 | H89: 37 | I89: 155 | J89: 158.5714286 | M89: 0.2963963964 | N89: 0.2963963964 | O89: 0.2963963964 | P89: 0.2963963964 | Q89: 做完不做 | R89: 0.3032258065 | S89: 0.3032258065 | T89: 0.3032258065 | U89: 0.3032258065 | V89: 244 | W89: 499 | X89: 79127.14286 | Y89: 77345 | Z89: 23453 | AA89: 23453 | AB89: 23453
A90: L4052702 | B90: 麦香米 | C90: L40511K | D90: L4052702麦香米 | E90: 1 | F90: 0 | G90: 1 | H90: 0 | I90: 4 | J90: 0 | M90: 1 | N90: 1 | O90: 1 | P90: 1 | Q90: 做完不做 | R90: 0.25 | S90: 0.25 | T90: 0.25 | U90: 0.25 | V90: 93 | W90: 199 | X90: 0 | Y90: 796 | Z90: 199 | AA90: 199 | AB90: 199
A91: L4060601 | B91: 番茄红 | C91: L406011 | D91: L4060601番茄红 | E91: 4 | F91: 480 | G91: 484 | H91: 21 | I91: 61 | J91: 90 | M91: 0.04444444444 | N91: 5.377777778 | O91: 5.377777778 | P91: 5.377777778 | Q91: 三级爆款 | R91: 0.06557377049 | S91: 7.93442623 | T91: 7.93442623 | U91: 7.93442623 | V91: 232 | W91: 499 | X91: 44910 | Y91: 30439 | Z91: 1996 | AA91: 241516 | AB91: 241516
A92: L4060601 | B92: 宝蓝色 | C92: L406013 | D92: L4060601宝蓝色 | E92: 27 | F92: 370 | G92: 397 | H92: 14 | I92: 58 | J92: 60 | M92: 0.45 | N92: 6.616666667 | O92: 6.616666667 | P92: 6.616666667 | Q92: 三级爆款 | R92: 0.4655172414 | S92: 6.844827586 | T92: 6.844827586 | U92: 6.844827586 | V92: 232 | W92: 499 | X92: 29940 | Y92: 28942 | Z92: 13473 | AA92: 198103 | AB92: 198103
A93: L4060601 | B93: 青柠黄 | C93: L406015 | D93: L4060601青柠黄 | E93: 22 | F93: 0 | G93: 22 | H93: 0 | I93: 0 | J93: 0 | M93: 22 | N93: 22 | O93: 22 | P93: 22 | Q93: 颜色不做 | R93: 22 | S93: 22 | T93: 22 | U93: 22 | V93: 250 | W93: 499 | X93: 0 | Y93: 0 | Z93: 10978 | AA93: 10978 | AB93: 10978
A94: L4060601 | B94: 子夜黑 | C94: L406010 | D94: L4060601子夜黑 | E94: -1 | F94: 200 | G94: 199 | H94: 7 | I94: 24 | J94: 30 | M94: -0.03333333333 | N94: 6.633333333 | O94: 6.633333333 | P94: 6.633333333 | Q94: 三级爆款 | R94: -0.04166666667 | S94: 8.291666667 | T94: 8.291666667 | U94: 8.291666667 | V94: 218 | W94: 499 | X94: 14970 | Y94: 11976 | Z94: -499 | AA94: 99301 | AB94: 99301
A95: L4060601 | B95: 薄荷色 | C95: L406016 | D95: L4060601薄荷色 | E95: 13 | F95: 340 | G95: 353 | H95: 15 | I95: 47 | J95: 64.28571429 | M95: 0.2022222222 | N95: 5.491111111 | O95: 5.491111111 | P95: 5.491111111 | Q95: 三级爆款 | R95: 0.2765957447 | S95: 7.510638298 | T95: 7.510638298 | U95: 7.510638298 | V95: 223 | W95: 499 | X95: 32078.57143 | Y95: 23453 | Z95: 6487 | AA95: 176147 | AB95: 176147
A96: L4060605 | B96: 番茄红 | C96: L406051 | D96: =A96&B96 -> L4060605番茄红 | E96: 118 | F96: 0 | G96: =E96+F96 -> 118 | H96: 7 | I96: 35 | J96: =H96/7*30 -> 30 | M96: =IF(J96=0,E96,E96/J96) -> 3.933333333 | N96: =IF(J96=0,G96,G96/J96) -> 3.933333333 | O96: 3.933333333 | P96: 3.933333333 | Q96: 普通款 | R96: =IF(I96=0,E96,E96/I96) -> 3.371428571 | S96: =IF(I96=0,G96,G96/I96) -> 3.371428571 | T96: 3.371428571 | U96: 3.371428571 | V96: 105 | W96: 299 | X96: 8970 | Y96: 10465 | Z96: 35282 | AA96: 35282 | AB96: 35282
A97: L4060605 | B97: 宝蓝色 | C97: L406053 | D97: L4060605宝蓝色 | E97: 26 | F97: 40 | G97: 66 | H97: 13 | I97: 38 | J97: 55.71428571 | M97: 0.4666666667 | N97: 1.184615385 | O97: 1.184615385 | P97: 1.184615385 | Q97: 普通款 | R97: 0.6842105263 | S97: 1.736842105 | T97: 1.736842105 | U97: 1.736842105 | V97: 105 | W97: 299 | X97: 16658.57143 | Y97: 11362 | Z97: 7774 | AA97: 19734 | AB97: 19734
A98: L4060605 | B98: 青柠黄 | C98: L406055 | D98: L4060605青柠黄 | E98: 12 | F98: 0 | G98: 12 | H98: 0 | I98: 5 | J98: 0 | M98: 12 | N98: 12 | O98: 12 | P98: 12 | Q98: 颜色不做 | R98: 2.4 | S98: 2.4 | T98: 2.4 | U98: 2.4 | V98: 111 | W98: 299 | X98: 0 | Y98: 1495 | Z98: 3588 | AA98: 3588 | AB98: 3588
A99: L4062601 | B99: 木莓红 | C99: L406091 | D99: L4062601木莓红 | E99: 34 | F99: 0 | G99: 34 | H99: 3 | I99: 6 | J99: 12.85714286 | M99: 2.644444444 | N99: 2.644444444 | O99: 2.644444444 | P99: 2.644444444 | Q99: 做完不做 | R99: 5.666666667 | S99: 5.666666667 | T99: 5.666666667 | U99: 5.666666667 | V99: 324 | W99: 699 | X99: 8987.142857 | Y99: 4194 | Z99: 23766 | AA99: 23766 | AB99: 23766
A100: L4062601 | B100: 森林绿 | C100: L406096 | D100: L4062601森林绿 | E100: 5 | F100: 0 | G100: 5 | H100: 3 | I100: 18 | J100: 12.85714286 | M100: 0.3888888889 | N100: 0.3888888889 | O100: 0.3888888889 | P100: 0.3888888889 | Q100: 做完不做 | R100: 0.2777777778 | S100: 0.2777777778 | T100: 0.2777777778 | U100: 0.2777777778 | V100: 324 | W100: 699 | X100: 8987.142857 | Y100: 12582 | Z100: 3495 | AA100: 3495 | AB100: 3495
A101: L4062601 | B101: 裸粉色 | C101: L40609A | D101: L4062601裸粉色 | E101: 51 | F101: 0 | G101: 51 | H101: 4 | I101: 9 | J101: 17.14285714 | M101: 2.975 | N101: 2.975 | O101: 2.975 | P101: 2.975 | Q101: 做完不做 | R101: 5.666666667 | S101: 5.666666667 | T101: 5.666666667 | U101: 5.666666667 | V101: 324 | W101: 699 | X101: 11982.85714 | Y101: 6291 | Z101: 35649 | AA101: 35649 | AB101: 35649
A102: L4062601 | B102: 子夜黑 | C102: L406090 | D102: L4062601子夜黑 | E102: 38 | F102: 0 | G102: 38 | H102: 5 | I102: 12 | J102: 21.42857143 | M102: 1.773333333 | N102: 1.773333333 | O102: 1.773333333 | P102: 1.773333333 | Q102: 做完不做 | R102: 3.166666667 | S102: 3.166666667 | T102: 3.166666667 | U102: 3.166666667 | V102: 324 | W102: 699 | X102: 14978.57143 | Y102: 8388 | Z102: 26562 | AA102: 26562 | AB102: 26562
A103: MG4052001 | B103: 酒红撞色 | C103: MG40520011 | D103: MG4052001酒红撞色 | E103: 3 | F103: 83 | G103: 86 | H103: 2 | I103: 20 | J103: 8.571428571 | M103: 0.35 | N103: 10.03333333 | O103: 10.03333333 | P103: 10.03333333 | Q103: 边缘款 | R103: 0.15 | S103: 4.3 | T103: 4.3 | U103: 4.3 | V103: 461.5 | W103: 1099 | X103: 9420 | Y103: 21980 | Z103: 3297 | AA103: 94514 | AB103: 94514
A104: MG4052003 | B104: 冰粉色 | C104: MG4052003BA | D104: MG4052003冰粉色 | E104: -1 | F104: 38 | G104: 37 | H104: 4 | I104: 15 | J104: 17.14285714 | M104: -0.05833333333 | N104: 2.158333333 | O104: 2.158333333 | P104: 2.158333333 | Q104: 普通款 | R104: -0.06666666667 | S104: 2.466666667 | T104: 2.466666667 | U104: 2.466666667 | V104: 210.5 | W104: 499 | X104: 8554.285714 | Y104: 7485 | Z104: -499 | AA104: 18463 | AB104: 18463
A105: MG4052003 | B105: 蜜桃粉 | C105: MG4052003A | D105: MG4052003蜜桃粉 | E105: 22 | F105: 51 | G105: 73 | H105: 4 | I105: 24 | J105: 17.14285714 | M105: 1.283333333 | N105: 4.258333333 | O105: 4.258333333 | P105: 4.258333333 | Q105: 普通款 | R105: 0.9166666667 | S105: 3.041666667 | T105: 3.041666667 | U105: 3.041666667 | V105: 210.5 | W105: 499 | X105: 8554.285714 | Y105: 11976 | Z105: 10978 | AA105: 36427 | AB105: 36427
A106: MG4052003 | B106: 玫红色 | C106: MG4052003M1 | D106: MG4052003玫红色 | E106: 10 | F106: 27 | G106: 37 | H106: 1 | I106: 3 | J106: 4.285714286 | M106: 2.333333333 | N106: 8.633333333 | O106: 8.633333333 | P106: 8.633333333 | Q106: 普通款 | R106: 3.333333333 | S106: 12.33333333 | T106: 12.33333333 | U106: 12.33333333 | V106: 210.5 | W106: 499 | X106: 2138.571429 | Y106: 1497 | Z106: 4990 | AA106: 18463 | AB106: 18463
A107: MG4052004 | B107: 电光蓝 | C107: MG40520043 | D107: MG4052004电光蓝 | E107: 53 | F107: 0 | G107: 53 | H107: 3 | I107: 6 | J107: 12.85714286 | M107: 4.122222222 | N107: 4.122222222 | O107: 4.122222222 | P107: 4.122222222 | Q107: 边缘款 | R107: 8.833333333 | S107: 8.833333333 | T107: 8.833333333 | U107: 8.833333333 | V107: 210.5 | W107: 499 | X107: 6415.714286 | Y107: 2994 | Z107: 26447 | AA107: 26447 | AB107: 26447
A108: MG4052005 | B108: 冰粉色 | C108: MG4052005A | D108: MG4052005冰粉色 | E108: -5 | F108: 15 | G108: 10 | H108: 2 | I108: 6 | J108: 8.571428571 | M108: -0.5833333333 | N108: 1.166666667 | O108: 1.166666667 | P108: 1.166666667 | Q108: 边缘款 | R108: -0.8333333333 | S108: 1.666666667 | T108: 1.666666667 | U108: 1.666666667 | V108: 450.5 | W108: 769 | X108: 6591.428571 | Y108: 4614 | Z108: -3845 | AA108: 7690 | AB108: 7690
A109: MG4052005 | B109: 天蓝色 | C109: MG40520053 | D109: MG4052005天蓝色 | E109: 11 | F109: 0 | G109: 11 | H109: 0 | I109: 3 | J109: 0 | M109: 11 | N109: 11 | O109: 11 | P109: 11 | Q109: 边缘款 | R109: 3.666666667 | S109: 3.666666667 | T109: 3.666666667 | U109: 3.666666667 | V109: 450.5 | W109: 769 | X109: 0 | Y109: 2307 | Z109: 8459 | AA109: 8459 | AB109: 8459
A110: MG4052006 | B110: 罗兰紫 | C110: MG40520067 | D110: MG4052006罗兰紫 | E110: 43 | F110: 1 | G110: 44 | H110: 1 | I110: 4 | J110: 4.285714286 | M110: 10.03333333 | N110: 10.26666667 | O110: 10.26666667 | P110: 10.26666667 | Q110: 边缘款 | R110: 10.75 | S110: 11 | T110: 11 | U110: 11 | V110: 418.5 | W110: 989 | X110: 4238.571429 | Y110: 3956 | Z110: 42527 | AA110: 43516 | AB110: 43516
A111: MG4052006 | B111: 樱桃红 | C111: MG4052006A | D111: MG4052006樱桃红 | E111: 69 | F111: 0 | G111: 69 | H111: 0 | I111: 0 | J111: 0 | M111: 69 | N111: 69 | O111: 69 | P111: 69 | Q111: 边缘款 | R111: 69 | S111: 69 | T111: 69 | U111: 69 | V111: 418.5 | W111: 989 | X111: 0 | Y111: 0 | Z111: 68241 | AA111: 68241 | AB111: 68241
A112: MG4052007 | B112: 玫粉撞色 | C112: MG4052007M1 | D112: MG4052007玫粉撞色 | E112: 12 | F112: 50 | G112: 62 | H112: 7 | I112: 15 | J112: 30 | M112: 0.4 | N112: 2.066666667 | O112: 2.066666667 | P112: 2.066666667 | Q112: 边缘款 | R112: 0.8 | S112: 4.133333333 | T112: 4.133333333 | U112: 4.133333333 | V112: 401.5 | W112: 979 | X112: 29370 | Y112: 14685 | Z112: 11748 | AA112: 60698 | AB112: 60698
A113: MG4052008 | B113: 樱花粉 | C113: MG4052008A | D113: MG4052008樱花粉 | E113: 73 | F113: 3 | G113: 76 | H113: 1 | I113: 2 | J113: 4.285714286 | M113: 17.03333333 | N113: 17.73333333 | O113: 17.73333333 | P113: 17.73333333 | Q113: 边缘款 | R113: 36.5 | S113: 38 | T113: 38 | U113: 38 | V113: 459.5 | W113: 989 | X113: 4238.571429 | Y113: 1978 | Z113: 72197 | AA113: 75164 | AB113: 75164
A114: MG4052008 | B114: 玉石白 | C114: MG4052008D | D114: MG4052008玉石白 | E114: 25 | F114: 0 | G114: 25 | H114: 1 | I114: 3 | J114: 4.285714286 | M114: 5.833333333 | N114: 5.833333333 | O114: 5.833333333 | P114: 5.833333333 | Q114: 边缘款 | R114: 8.333333333 | S114: 8.333333333 | T114: 8.333333333 | U114: 8.333333333 | V114: 459.5 | W114: 989 | X114: 4238.571429 | Y114: 2967 | Z114: 24725 | AA114: 24725 | AB114: 24725
A115: MG4052009 | B115: 樱花粉 | C115: MG4052009A | D115: MG4052009樱花粉 | E115: 35 | F115: 0 | G115: 35 | H115: 4 | I115: 4 | J115: 17.14285714 | M115: 2.041666667 | N115: 2.041666667 | O115: 2.041666667 | P115: 2.041666667 | Q115: 边缘款 | R115: 8.75 | S115: 8.75 | T115: 8.75 | U115: 8.75 | V115: 394.5 | W115: 899 | X115: 15411.42857 | Y115: 3596 | Z115: 31465 | AA115: 31465 | AB115: 31465
A116: MG4052009 | B116: 罗兰紫 | C116: MG40520097 | D116: MG4052009罗兰紫 | E116: 10 | F116: 0 | G116: 10 | H116: 1 | I116: 2 | J116: 4.285714286 | M116: 2.333333333 | N116: 2.333333333 | O116: 2.333333333 | P116: 2.333333333 | Q116: 边缘款 | R116: 5 | S116: 5 | T116: 5 | U116: 5 | V116: 394.5 | W116: 899 | X116: 3852.857143 | Y116: 1798 | Z116: 8990 | AA116: 8990 | AB116: 8990
A117: MG4052010 | B117: 迷雾蓝 | C117: MG40520103 | D117: MG4052010迷雾蓝 | E117: 39 | F117: 0 | G117: 39 | H117: 1 | I117: 10 | J117: 4.285714286 | M117: 9.1 | N117: 9.1 | O117: 9.1 | P117: 9.1 | Q117: 边缘款 | R117: 3.9 | S117: 3.9 | T117: 3.9 | U117: 3.9 | V117: 303.5 | W117: 699 | X117: 2995.714286 | Y117: 6990 | Z117: 27261 | AA117: 27261 | AB117: 27261
A118: MG4052010 | B118: 玫红色 | C118: MG4052010M1 | D118: MG4052010玫红色 | E118: 25 | F118: 20 | G118: 45 | H118: 1 | I118: 8 | J118: 4.285714286 | M118: 5.833333333 | N118: 10.5 | O118: 10.5 | P118: 10.5 | Q118: 边缘款 | R118: 3.125 | S118: 5.625 | T118: 5.625 | U118: 5.625 | V118: 303.5 | W118: 699 | X118: 2995.714286 | Y118: 5592 | Z118: 17475 | AA118: 31455 | AB118: 31455
A119: MG4052012 | B119: 中国红 | C119: MG40520121 | D119: MG4052012中国红 | E119: -4 | F119: 69 | G119: 65 | H119: 3 | I119: 11 | J119: 12.85714286 | M119: -0.3111111111 | N119: 5.055555556 | O119: 5.055555556 | P119: 5.055555556 | Q119: 边缘款 | R119: -0.3636363636 | S119: 5.909090909 | T119: 5.909090909 | U119: 5.909090909 | V119: 260.5 | W119: 599 | X119: 7701.428571 | Y119: 6589 | Z119: -2396 | AA119: 38935 | AB119: 38935
A120: MG4052012 | B120: 子夜黑 | C120: MG40520120 | D120: MG4052012子夜黑 | E120: 0 | F120: 84 | G120: 84 | H120: 4 | I120: 6 | J120: 17.14285714 | M120: 0 | N120: 4.9 | O120: 4.9 | P120: 4.9 | Q120: 边缘款 | R120: 0 | S120: 14 | T120: 14 | U120: 14 | V120: 260.5 | W120: 599 | X120: 10268.57143 | Y120: 3594 | Z120: 0 | AA120: 50316 | AB120: 50316
A121: MG4052013 | B121: 中国红 | C121: MG40520131 | D121: MG4052013中国红 | E121: 12 | F121: 0 | G121: 12 | H121: 0 | I121: 3 | J121: 0 | M121: 12 | N121: 12 | O121: 12 | P121: 12 | Q121: 边缘款 | R121: 4 | S121: 4 | T121: 4 | U121: 4 | V121: 177 | W121: 469 | X121: 0 | Y121: 1407 | Z121: 5628 | AA121: 5628 | AB121: 5628
A122: MG4060601 | B122: 玫红色 | C122: MG4060601M1 | D122: MG4060601玫红色 | E122: -16 | F122: 33 | G122: 17 | H122: 4 | I122: 13 | J122: 17.14285714 | M122: -0.9333333333 | N122: 0.9916666667 | O122: 0.9916666667 | P122: 0.9916666667 | Q122: 边缘款 | R122: -1.230769231 | S122: 1.307692308 | T122: 1.307692308 | U122: 1.307692308 | V122: 512.5 | W122: 1269 | X122: 21754.28571 | Y122: 16497 | Z122: -20304 | AA122: 21573 | AB122: 21573
A123: MG4060602 | B123: 玫红色 | C123: MG4060602M1 | D123: MG4060602玫红色 | E123: 36 | F123: 50 | G123: 86 | H123: 6 | I123: 25 | J123: 25.71428571 | M123: 1.4 | N123: 3.344444444 | O123: 3.344444444 | P123: 3.344444444 | Q123: 边缘款 | R123: 1.44 | S123: 3.44 | T123: 3.44 | U123: 3.44 | V123: 275.5 | W123: 669 | X123: 17202.85714 | Y123: 16725 | Z123: 24084 | AA123: 57534 | AB123: 57534
A124: MG4073101 | B124: 酷炫黑 | C124: MG40731010 | D124: MG4073101酷炫黑 | E124: 28 | F124: 40 | G124: 68 | H124: 29 | I124: 29 | J124: 124.2857143 | M124: 0.2252873563 | N124: 0.5471264368 | O124: 0.5471264368 | P124: 0.5471264368 | Q124: 新款 | R124: 0.9655172414 | S124: 2.344827586 | T124: 2.344827586 | U124: 2.344827586 | V124: 229.5 | W124: 499 | X124: 62018.57143 | Y124: 14471 | Z124: 13972 | AA124: 33932 | AB124: 33932
A125: MG4073101 | B125: 恶魔红 | C125: MG40731011 | D125: MG4073101恶魔红 | E125: 1 | F125: 40 | G125: 41 | H125: 40 | I125: 42 | J125: 171.4285714 | M125: 0.005833333333 | N125: 0.2391666667 | O125: 0.2391666667 | P125: 0.2391666667 | Q125: 新款 | R125: 0.02380952381 | S125: 0.9761904762 | T125: 0.9761904762 | U125: 0.9761904762 | V125: 229.5 | W125: 499 | X125: 85542.85714 | Y125: 20958 | Z125: 499 | AA125: 20459 | AB125: 20459
A126: MS4052002 | B126: 酒红撞色 | C126: MS40520021 | D126: MS4052002酒红撞色 | E126: 351 | F126: 1 | G126: 352 | H126: 8 | I126: 37 | J126: 34.28571429 | M126: 10.2375 | N126: 10.26666667 | O126: 10.26666667 | P126: 10.26666667 | Q126: 边缘款 | R126: 9.486486486 | S126: 9.513513514 | T126: 9.513513514 | U126: 9.513513514 | V126: 111 | W126: 299 | X126: 10251.42857 | Y126: 11063 | Z126: 104949 | AA126: 105248 | AB126: 105248
A127: MS4052011 | B127: 淡黄色 | C127: MS40520115 | D127: MS4052011淡黄色 | E127: 49 | F127: 8 | G127: 57 | H127: 0 | I127: 4 | J127: 0 | M127: 49 | N127: 57 | O127: 57 | P127: 57 | Q127: 普通款 | R127: 12.25 | S127: 14.25 | T127: 14.25 | U127: 14.25 | V127: 128 | W127: 299 | X127: 0 | Y127: 1196 | Z127: 14651 | AA127: 17043 | AB127: 17043
A128: MS4052011 | B128: 迷雾蓝 | C128: MS40520113 | D128: MS4052011迷雾蓝 | E128: 23 | F128: 0 | G128: 23 | H128: 1 | I128: 13 | J128: 4.285714286 | M128: 5.366666667 | N128: 5.366666667 | O128: 5.366666667 | P128: 5.366666667 | Q128: 普通款 | R128: 1.769230769 | S128: 1.769230769 | T128: 1.769230769 | U128: 1.769230769 | V128: 128 | W128: 299 | X128: 1281.428571 | Y128: 3887 | Z128: 6877 | AA128: 6877 | AB128: 6877
A129: MS4052011 | B129: 玫红色 | C129: MS4052011M1 | D129: MS4052011玫红色 | E129: 20 | F129: 130 | G129: 150 | H129: 18 | I129: 56 | J129: 77.14285714 | M129: 0.2592592593 | N129: 1.944444444 | O129: 1.944444444 | P129: 1.944444444 | Q129: 普通款 | R129: 0.3571428571 | S129: 2.678571429 | T129: 2.678571429 | U129: 2.678571429 | V129: 128 | W129: 299 | X129: 23065.71429 | Y129: 16744 | Z129: 5980 | AA129: 44850 | AB129: 44850
A130: MS4052011 | B130: 芭比粉 | C130: MS4052011A | D130: MS4052011芭比粉 | E130: 61 | F130: 115 | G130: 176 | H130: 8 | I130: 46 | J130: 34.28571429 | M130: 1.779166667 | N130: 5.133333333 | O130: =IF(J130=0,G130,(G130+K130)/J130) -> 5.133333333 | P130: =IF(J130=0,G130,(G130+K130+L130)/J130) -> 5.133333333 | Q130: 普通款 | R130: 1.326086957 | S130: 3.826086957 | T130: =IF(I130=0,K130+G130,(K130+G130)/I130) -> 3.826086957 | U130: =IF(I130=0,G130,(K130+G130+L130)/I130) -> 3.826086957 | V130: 128 | W130: 299 | X130: =W130*J130 -> 10251.42857 | Y130: =W130*I130 -> 13754 | Z130: =W130*E130 -> 18239 | AA130: =G130*W130 -> 52624 | AB130: =(G130+K130+L130)*W130 -> 52624
A131: MY4071001 | B131: 芭比粉 | C131: MY4071001A | D131: MY4071001芭比粉 | E131: 26 | F131: 86 | G131: 112 | H131: 16 | I131: 77 | J131: 68.57142857 | M131: 0.3791666667 | N131: 1.633333333 | O131: 1.633333333 | P131: 1.633333333 | Q131: 新款 | R131: 0.3376623377 | S131: 1.454545455 | T131: 1.454545455 | U131: 1.454545455 | V131: 176 | W131: 399 | X131: 27360 | Y131: 30723 | Z131: 10374 | AA131: 44688 | AB131: 44688
A132: MY4071002 | B132: 芭比粉 | C132: MY4071002A | D132: MY4071002芭比粉 | E132: 50 | F132: 51 | G132: 101 | H132: 12 | I132: 48 | J132: 51.42857143 | M132: 0.9722222222 | N132: 1.963888889 | O132: 1.963888889 | P132: 1.963888889 | Q132: 新款 | R132: 1.041666667 | S132: 2.104166667 | T132: 2.104166667 | U132: 2.104166667 | V132: 149.5 | W132: 389 | X132: 20005.71429 | Y132: 18672 | Z132: 19450 | AA132: 39289 | AB132: 39289
A133: MY4073102 | B133: 酷炫黑 | C133: MY40731020 | D133: MY4073102酷炫黑 | E133: 47 | F133: 1 | G133: 48 | H133: 15 | I133: 15 | J133: 64.28571429 | M133: 0.7311111111 | N133: 0.7466666667 | O133: 0.7466666667 | P133: 0.7466666667 | Q133: 新款 | R133: 3.133333333 | S133: 3.2 | T133: 3.2 | U133: 3.2 | V133: 148.5 | W133: 349 | X133: 22435.71429 | Y133: 5235 | Z133: 16403 | AA133: 16752 | AB133: 16752
A134: MY4073102 | B134: 香槟金 | C134: MY4073102H | D134: MY4073102香槟金 | E134: 42 | F134: 1 | G134: 43 | H134: 25 | I134: 25 | J134: 107.1428571 | M134: 0.392 | N134: 0.4013333333 | O134: 0.4013333333 | P134: 0.4013333333 | Q134: 新款 | R134: 1.68 | S134: 1.72 | T134: 1.72 | U134: 1.72 | V134: 136.5 | W134: 349 | X134: 37392.85714 | Y134: 8725 | Z134: 14658 | AA134: 15007 | AB134: 15007
A135: MY4073102 | B135: 恶魔红 | C135: MY40721021 | D135: MY4073102恶魔红 | E135: 52 | F135: 1 | G135: 53 | H135: 10 | I135: 10 | J135: 42.85714286 | M135: 1.213333333 | N135: 1.236666667 | O135: 1.236666667 | P135: 1.236666667 | Q135: 新款 | R135: 5.2 | S135: 5.3 | T135: 5.3 | U135: 5.3 | V135: 148.5 | W135: 349 | X135: 14957.14286 | Y135: 3490 | Z135: 18148 | AA135: 18497 | AB135: 18497
A136: MY4073102 | B136: 玫瑰金 | C136: MY4073102MH | D136: MY4073102玫瑰金 | E136: 39 | F136: 1 | G136: 40 | H136: 26 | I136: 26 | J136: 111.4285714 | M136: 0.35 | N136: 0.358974359 | O136: 0.358974359 | P136: 0.358974359 | Q136: 新款 | R136: 1.5 | S136: 1.538461538 | T136: 1.538461538 | U136: 1.538461538 | V136: 134.5 | W136: 349 | X136: 38888.57143 | Y136: 9074 | Z136: 13611 | AA136: 13960 | AB136: 13960
A137: N2111102 | B137: 木莓红 | C137: N211021 | D137: N2111102木莓红 | E137: 3 | F137: 0 | G137: 3 | H137: 1 | I137: 6 | J137: 4.285714286 | M137: 0.7 | N137: 0.7 | O137: 0.7 | P137: 0.7 | Q137: 二级爆款 | R137: 0.5 | S137: 0.5 | T137: 0.5 | U137: 0.5 | V137: 220 | W137: 399 | X137: 1710 | Y137: 2394 | Z137: 1197 | AA137: 1197 | AB137: 1197
A138: N2111102 | B138: 浅姜黄 | C138: N211025 | D138: N2111102浅姜黄 | E138: 23 | F138: 0 | G138: 23 | H138: 4 | I138: 10 | J138: 17.14285714 | M138: 1.341666667 | N138: 1.341666667 | O138: 1.341666667 | P138: 1.341666667 | Q138: 二级爆款 | R138: 2.3 | S138: 2.3 | T138: 2.3 | U138: 2.3 | V138: 220 | W138: 399 | X138: 6840 | Y138: 3990 | Z138: 9177 | AA138: 9177 | AB138: 9177
A139: N2111102 | B139: 天空蓝 | C139: N211023 | D139: N2111102天空蓝 | E139: 30 | F139: 0 | G139: 30 | H139: 1 | I139: 2 | J139: 4.285714286 | M139: 7 | N139: 7 | O139: 7 | P139: 7 | Q139: 二级爆款 | R139: 15 | S139: 15 | T139: 15 | U139: 15 | V139: 220 | W139: 399 | X139: 1710 | Y139: 798 | Z139: 11970 | AA139: 11970 | AB139: 11970
A140: N2111102 | B140: 樱花粉 | C140: N21102A | D140: N2111102樱花粉 | E140: 1 | F140: 0 | G140: 1 | H140: 0 | I140: 0 | J140: 0 | M140: 1 | N140: 1 | O140: 1 | P140: 1 | Q140: 二级爆款 | R140: 1 | S140: 1 | T140: 1 | U140: 1 | V140: 220 | W140: 399 | X140: 0 | Y140: 0 | Z140: 399 | AA140: 399 | AB140: 399
A141: N2111102 | B141: 子夜黑 | C141: N211020 | D141: N2111102子夜黑 | E141: 1959 | F141: 1300 | G141: 3259 | H141: 132 | I141: 338 | J141: 565.7142857 | M141: 3.462878788 | N141: 5.760858586 | O141: 5.760858586 | P141: 5.760858586 | Q141: 二级爆款 | R141: 5.795857988 | S141: 9.642011834 | T141: 9.642011834 | U141: 9.642011834 | V141: 220 | W141: 399 | X141: 225720 | Y141: 134862 | Z141: 781641 | AA141: 1300341 | AB141: 1300341
A142: N2112704 | B142: 枣红色 | C142: N211111 | D142: N2112704枣红色 | E142: 1 | F142: 0 | G142: 1 | H142: 0 | I142: 0 | J142: 0 | M142: 1 | N142: 1 | O142: 1 | P142: 1 | Q142: 做完不做 | R142: 1 | S142: 1 | T142: 1 | U142: 1 | V142: 239 | W142: 499 | X142: 0 | Y142: 0 | Z142: 499 | AA142: 499 | AB142: 499
A143: N3022601 | B143: 蜜桃粉 | C143: N30205A | D143: N3022601蜜桃粉 | E143: 31 | F143: 45 | G143: 76 | H143: 2 | I143: 8 | J143: 8.571428571 | M143: 3.616666667 | N143: 8.866666667 | O143: 8.866666667 | P143: 8.866666667 | Q143: 三级爆款 | R143: 3.875 | S143: 9.5 | T143: 9.5 | U143: 9.5 | V143: 449 | W143: 699.3 | X143: 5994 | Y143: 5594.4 | Z143: 21678.3 | AA143: 53146.8 | AB143: 53146.8
A144: N3022601 | B144: 柠檬黄 | C144: N302055 | D144: N3022601柠檬黄 | E144: 28 | F144: 0 | G144: 28 | H144: 0 | I144: 0 | J144: 0 | M144: 28 | N144: 28 | O144: 28 | P144: 28 | Q144: 三级爆款 | R144: 28 | S144: 28 | T144: 28 | U144: 28 | V144: 449 | W144: 699.3 | X144: 0 | Y144: 0 | Z144: 19580.4 | AA144: 19580.4 | AB144: 19580.4
A145: N3022601 | B145: 天蓝色 | C145: N302053 | D145: N3022601天蓝色 | E145: 10 | F145: 0 | G145: 10 | H145: 1 | I145: 4 | J145: 4.285714286 | M145: 2.333333333 | N145: 2.333333333 | O145: 2.333333333 | P145: 2.333333333 | Q145: 颜色不做 | R145: 2.5 | S145: 2.5 | T145: 2.5 | U145: 2.5 | V145: 449 | W145: 699.3 | X145: 2997 | Y145: 2797.2 | Z145: 6993 | AA145: 6993 | AB145: 6993
A146: N3022601 | B146: 薰衣草紫 | C146: N302057 | D146: N3022601薰衣草紫 | E146: 237 | F146: 1175 | G146: 1412 | H146: 25 | I146: 95 | J146: 107.1428571 | M146: 2.212 | N146: 13.17866667 | O146: 13.17866667 | P146: 13.17866667 | Q146: 三级爆款 | R146: 2.494736842 | S146: 14.86315789 | T146: 14.86315789 | U146: 14.86315789 | V146: 449 | W146: 699.3 | X146: 74925 | Y146: 66433.5 | Z146: 165734.1 | AA146: 987411.6 | AB146: 987411.6
A147: N3022601 | B147: 子夜黑 | C147: N302050 | D147: N3022601子夜黑 | E147: 62 | F147: 54 | G147: 116 | H147: 1 | I147: 16 | J147: 4.285714286 | M147: 14.46666667 | N147: 27.06666667 | O147: 27.06666667 | P147: 27.06666667 | Q147: 三级爆款 | R147: 3.875 | S147: 7.25 | T147: 7.25 | U147: 7.25 | V147: 449 | W147: 699.3 | X147: 2997 | Y147: 11188.8 | Z147: 43356.6 | AA147: 81118.8 | AB147: 81118.8
A148: N3030501 | B148: 宝蓝色大版 | C148: N303013L | D148: N3030501宝蓝色大版 | E148: 491 | F148: 533 | G148: 1024 | H148: 26 | I148: 103 | J148: 111.4285714 | M148: 4.406410256 | N148: 9.18974359 | O148: 9.18974359 | P148: 9.18974359 | Q148: 一级爆款 | R148: 4.766990291 | S148: 9.941747573 | T148: 9.941747573 | U148: 9.941747573 | V148: 218 | W148: 399 | X148: 44460 | Y148: 41097 | Z148: 195909 | AA148: 408576 | AB148: 408576
A149: N3030501 | B149: 宝蓝色小版 | C149: N303013S | D149: N3030501宝蓝色小版 | E149: 234 | F149: 401 | G149: 635 | H149: 19 | I149: 84 | J149: 81.42857143 | M149: 2.873684211 | N149: 7.798245614 | O149: 7.798245614 | P149: 7.798245614 | Q149: 一级爆款 | R149: 2.785714286 | S149: 7.55952381 | T149: 7.55952381 | U149: 7.55952381 | V149: 195 | W149: 389 | X149: 31675.71429 | Y149: 32676 | Z149: 91026 | AA149: 247015 | AB149: 247015
A150: N3030501 | B150: 姜黄色大版 | C150: N303015L | D150: N3030501姜黄色大版 | E150: 1118 | F150: 453 | G150: 1571 | H150: 47 | I150: 239 | J150: 201.4285714 | M150: 5.55035461 | N150: 7.79929078 | O150: 7.79929078 | P150: 7.79929078 | Q150: 一级爆款 | R150: 4.677824268 | S150: 6.573221757 | T150: 6.573221757 | U150: 6.573221757 | V150: 218 | W150: 399 | X150: 80370 | Y150: 95361 | Z150: 446082 | AA150: 626829 | AB150: 626829
A151: N3030501 | B151: 姜黄色小版 | C151: N303015S | D151: N3030501姜黄色小版 | E151: 636 | F151: 294 | G151: 930 | H151: 29 | I151: 162 | J151: 124.2857143 | M151: 5.117241379 | N151: 7.482758621 | O151: 7.482758621 | P151: 7.482758621 | Q151: 一级爆款 | R151: 3.925925926 | S151: 5.740740741 | T151: 5.740740741 | U151: 5.740740741 | V151: 195 | W151: 389 | X151: 48347.14286 | Y151: 63018 | Z151: 247404 | AA151: 361770 | AB151: 361770
A152: N3030501 | B152: 玫红色大版 | C152: N303011L | D152: N3030501玫红色大版 | E152: 151 | F152: 1219 | G152: 1370 | H152: 74 | I152: 267 | J152: 317.1428571 | M152: 0.4761261261 | N152: 4.31981982 | O152: 4.31981982 | P152: 4.31981982 | Q152: 一级爆款 | R152: 0.5655430712 | S152: 5.131086142 | T152: 5.131086142 | U152: 5.131086142 | V152: 218 | W152: 399 | X152: 126540 | Y152: 106533 | Z152: 60249 | AA152: 546630 | AB152: 546630
A153: N3030501 | B153: 玫红色小版 | C153: N303011S | D153: =A153&B153 -> N3030501玫红色小版 | E153: -46 | F153: 1108 | G153: =E153+F153 -> 1062 | H153: 37 | I153: 146 | J153: =H153/7*30 -> 158.5714286 | M153: =IF(J153=0,E153,E153/J153) -> -0.2900900901 | N153: =IF(J153=0,G153,G153/J153) -> 6.697297297 | O153: 6.697297297 | P153: 6.697297297 | Q153: 一级爆款 | R153: =IF(I153=0,E153,E153/I153) -> -0.3150684932 | S153: =IF(I153=0,G153,G153/I153) -> 7.273972603 | T153: 7.273972603 | U153: 7.273972603 | V153: 195 | W153: 389 | X153: 61684.28571 | Y153: 56794 | Z153: -17894 | AA153: 413118 | AB153: 413118
A154: N3030501 | B154: 子夜黑大版 | C154: N303010L | D154: N3030501子夜黑大版 | E154: 498 | F154: 6 | G154: 504 | H154: 22 | I154: 74 | J154: 94.28571429 | M154: 5.281818182 | N154: 5.345454545 | O154: 5.345454545 | P154: 5.345454545 | Q154: 一级爆款 | R154: 6.72972973 | S154: 6.810810811 | T154: 6.810810811 | U154: 6.810810811 | V154: 218 | W154: 399 | X154: 37620 | Y154: 29526 | Z154: 198702 | AA154: 201096 | AB154: 201096
A155: N3030501 | B155: 子夜黑小版 | C155: N303010S | D155: N3030501子夜黑小版 | E155: 216 | F155: 305 | G155: 521 | H155: 25 | I155: 87 | J155: 107.1428571 | M155: 2.016 | N155: 4.862666667 | O155: 4.862666667 | P155: 4.862666667 | Q155: 一级爆款 | R155: 2.482758621 | S155: 5.988505747 | T155: 5.988505747 | U155: 5.988505747 | V155: 195 | W155: 389 | X155: 41678.57143 | Y155: 33843 | Z155: 84024 | AA155: 202669 | AB155: 202669
A156: N3030501 | B156: 中国红大版 | C156: N30301Z1L | D156: N3030501中国红大版 | E156: 1 | F156: 0 | G156: 1 | H156: 0 | I156: 0 | J156: 0 | M156: 1 | N156: 1 | O156: 1 | P156: 1 | Q156: 颜色不做 | R156: 1 | S156: 1 | T156: 1 | U156: 1 | V156: 229 | W156: 469 | X156: 0 | Y156: 0 | Z156: 469 | AA156: 469 | AB156: 469
A157: N3040202 | B157: 橙红色 | C157: N304021 | D157: N3040202橙红色 | E157: 5 | F157: 0 | G157: 5 | H157: 2 | I157: 3 | J157: 8.571428571 | M157: 0.5833333333 | N157: 0.5833333333 | O157: 0.5833333333 | P157: 0.5833333333 | Q157: 颜色不做 | R157: 1.666666667 | S157: 1.666666667 | T157: 1.666666667 | U157: 1.666666667 | V157: 82.5 | W157: 167.3 | X157: 1434 | Y157: 501.9 | Z157: 836.5 | AA157: 836.5 | AB157: 836.5
A158: N3040202 | B158: 蜜桃粉 | C158: N30402A | D158: N3040202蜜桃粉 | E158: 55 | F158: 169 | G158: 224 | H158: 11 | I158: 42 | J158: 47.14285714 | M158: 1.166666667 | N158: 4.751515152 | O158: 4.751515152 | P158: 4.751515152 | Q158: 三级爆款 | R158: 1.30952381 | S158: 5.333333333 | T158: 5.333333333 | U158: 5.333333333 | V158: 82.5 | W158: 167.3 | X158: 7887 | Y158: 7026.6 | Z158: 9201.5 | AA158: 37475.2 | AB158: 37475.2
A159: N3040202 | B159: 柠檬黄 | C159: N304025 | D159: N3040202柠檬黄 | E159: 33 | F159: 50 | G159: 83 | H159: 7 | I159: 22 | J159: 30 | M159: 1.1 | N159: 2.766666667 | O159: 2.766666667 | P159: 2.766666667 | Q159: 三级爆款 | R159: 1.5 | S159: 3.772727273 | T159: 3.772727273 | U159: 3.772727273 | V159: 82.5 | W159: 167.3 | X159: 5019 | Y159: 3680.6 | Z159: 5520.9 | AA159: 13885.9 | AB159: 13885.9
A160: N3040202 | B160: 挪威绿 | C160: N304026 | D160: N3040202挪威绿 | E160: 55 | F160: 0 | G160: 55 | H160: 6 | I160: 20 | J160: 25.71428571 | M160: 2.138888889 | N160: 2.138888889 | O160: 2.138888889 | P160: 2.138888889 | Q160: 三级爆款 | R160: 2.75 | S160: 2.75 | T160: 2.75 | U160: 2.75 | V160: 82.5 | W160: 167.3 | X160: 4302 | Y160: 3346 | Z160: 9201.5 | AA160: 9201.5 | AB160: 9201.5
A161: N3040202 | B161: 薰衣草紫 | C161: N304027 | D161: N3040202薰衣草紫 | E161: 109 | F161: 69 | G161: 178 | H161: 17 | I161: 70 | J161: 72.85714286 | M161: 1.496078431 | N161: 2.443137255 | O161: 2.443137255 | P161: 2.443137255 | Q161: 三级爆款 | R161: 1.557142857 | S161: 2.542857143 | T161: 2.542857143 | U161: 2.542857143 | V161: 82.5 | W161: 167.3 | X161: 12189 | Y161: 11711 | Z161: 18235.7 | AA161: 29779.4 | AB161: 29779.4
A162: N3040202 | B162: 子夜黑 | C162: N304020 | D162: N3040202子夜黑 | E162: 1 | F162: 0 | G162: 1 | H162: 0 | I162: 3 | J162: 0 | M162: 1 | N162: 1 | O162: 1 | P162: 1 | Q162: 颜色不做 | R162: 0.3333333333 | S162: 0.3333333333 | T162: 0.3333333333 | U162: 0.3333333333 | V162: 82.5 | W162: 167.3 | X162: 0 | Y162: 501.9 | Z162: 167.3 | AA162: 167.3 | AB162: 167.3
A163: N3060401 | B163: 芭比粉大版 | C163: N30601AL | D163: N3060401芭比粉大版 | E163: 376 | F163: 64 | G163: 440 | H163: 23 | I163: 77 | J163: 98.57142857 | M163: 3.814492754 | N163: 4.463768116 | O163: 4.463768116 | P163: 4.463768116 | Q163: 一级爆款 | R163: 4.883116883 | S163: 5.714285714 | T163: 5.714285714 | U163: 5.714285714 | V163: 231 | W163: 489 | X163: 48201.42857 | Y163: 37653 | Z163: 183864 | AA163: 215160 | AB163: 215160
A164: N3060401 | B164: 芭比粉小版 | C164: N30601AS | D164: N3060401芭比粉小版 | E164: 95 | F164: 312 | G164: 407 | H164: 21 | I164: 72 | J164: 90 | M164: 1.055555556 | N164: 4.522222222 | O164: 4.522222222 | P164: 4.522222222 | Q164: 一级爆款 | R164: 1.319444444 | S164: 5.652777778 | T164: 5.652777778 | U164: 5.652777778 | V164: 199 | W164: 429 | X164: 38610 | Y164: 30888 | Z164: 40755 | AA164: 174603 | AB164: 174603
A165: N3060401 | B165: 冰蓝色大版 | C165: N306013L | D165: N3060401冰蓝色大版 | E165: 800 | F165: 809 | G165: 1609 | H165: 74 | I165: 259 | J165: 317.1428571 | M165: 2.522522523 | N165: 5.073423423 | O165: 5.073423423 | P165: 5.073423423 | Q165: 一级爆款 | R165: 3.088803089 | S165: 6.212355212 | T165: 6.212355212 | U165: 6.212355212 | V165: 231 | W165: 489 | X165: 155082.8571 | Y165: 126651 | Z165: 391200 | AA165: 786801 | AB165: 786801
A166: N3060401 | B166: 冰蓝色小版 | C166: N306013S | D166: N3060401冰蓝色小版 | E166: 949 | F166: 420 | G166: 1369 | H166: 41 | I166: 145 | J166: 175.7142857 | M166: 5.400813008 | N166: 7.791056911 | O166: 7.791056911 | P166: 7.791056911 | Q166: 一级爆款 | R166: 6.544827586 | S166: 9.44137931 | T166: 9.44137931 | U166: 9.44137931 | V166: 199 | W166: 429 | X166: 75381.42857 | Y166: 62205 | Z166: 407121 | AA166: 587301 | AB166: 587301
A167: N3060401 | B167: 森林绿小版 | C167: N306016S | D167: N3060401森林绿小版 | E167: 10 | F167: 0 | G167: 10 | H167: 0 | I167: 2 | J167: 0 | M167: 10 | N167: 10 | O167: 10 | P167: 10 | Q167: 颜色不做 | R167: 5 | S167: 5 | T167: 5 | U167: 5 | V167: 199 | W167: 429 | X167: 0 | Y167: 858 | Z167: 4290 | AA167: 4290 | AB167: 4290
A168: N3060401 | B168: 深橙色小版 | C168: N30601BS | D168: N3060401深橙色小版 | E168: 13 | F168: 0 | G168: 13 | H168: 2 | I168: 5 | J168: 8.571428571 | M168: 1.516666667 | N168: 1.516666667 | O168: 1.516666667 | P168: 1.516666667 | Q168: 颜色不做 | R168: 2.6 | S168: 2.6 | T168: 2.6 | U168: 2.6 | V168: 199 | W168: 429 | X168: 3677.142857 | Y168: 2145 | Z168: 5577 | AA168: 5577 | AB168: 5577
A169: N3060401 | B169: 皇家紫大版 | C169: N306017L | D169: N3060401皇家紫大版 | E169: 124 | F169: 27 | G169: 151 | H169: 5 | I169: 10 | J169: 21.42857143 | M169: 5.786666667 | N169: 7.046666667 | O169: 7.046666667 | P169: 7.046666667 | Q169: 一级爆款 | R169: 12.4 | S169: 15.1 | T169: 15.1 | U169: 15.1 | V169: 231 | W169: 489 | X169: 10478.57143 | Y169: 4890 | Z169: 60636 | AA169: 73839 | AB169: 73839
A170: N3060401 | B170: 皇家紫小版 | C170: N306017S | D170: N3060401皇家紫小版 | E170: 27 | F170: 1 | G170: 28 | H170: 1 | I170: 2 | J170: 4.285714286 | M170: 6.3 | N170: 6.533333333 | O170: 6.533333333 | P170: 6.533333333 | Q170: 一级爆款 | R170: 13.5 | S170: 14 | T170: 14 | U170: 14 | V170: 199 | W170: 429 | X170: 1838.571429 | Y170: 858 | Z170: 11583 | AA170: 12012 | AB170: 12012
A171: N3060401 | B171: 青柠黄白小版 | C171: N306015DS | D171: N3060401青柠黄白小版 | E171: 2 | F171: 0 | G171: 2 | H171: 0 | I171: 0 | J171: 0 | M171: 2 | N171: 2 | O171: 2 | P171: 2 | Q171: 颜色不做 | R171: 2 | S171: 2 | T171: 2 | U171: 2 | V171: 199 | W171: 429 | X171: 0 | Y171: 0 | Z171: 858 | AA171: 858 | AB171: 858
A172: N3060401 | B172: 熊猫色大版 | C172: N306010DL | D172: N3060401熊猫色大版 | E172: 138 | F172: 3 | G172: 141 | H172: 12 | I172: 41 | J172: 51.42857143 | M172: 2.683333333 | N172: 2.741666667 | O172: 2.741666667 | P172: 2.741666667 | Q172: 一级爆款 | R172: 3.365853659 | S172: 3.43902439 | T172: 3.43902439 | U172: 3.43902439 | V172: 231 | W172: 489 | X172: 25148.57143 | Y172: 20049 | Z172: 67482 | AA172: 68949 | AB172: 68949
A173: N3060401 | B173: 熊猫色小版 | C173: N306010DS | D173: N3060401熊猫色小版 | E173: 49 | F173: 5 | G173: 54 | H173: 6 | I173: 25 | J173: 25.71428571 | M173: 1.905555556 | N173: 2.1 | O173: 2.1 | P173: 2.1 | Q173: 一级爆款 | R173: 1.96 | S173: 2.16 | T173: 2.16 | U173: 2.16 | V173: 199 | W173: 429 | X173: 11031.42857 | Y173: 10725 | Z173: 21021 | AA173: 23166 | AB173: 23166
A174: N3091001 | B174: 蜜枣红 | C174: N309041 | D174: N3091001蜜枣红 | E174: 0 | F174: 0 | G174: 0 | H174: 0 | I174: 1 | J174: 0 | M174: 0 | N174: 0 | O174: 0 | P174: 0 | Q174: 做完不做 | R174: 0 | S174: 0 | T174: 0 | U174: 0 | V174: 212 | W174: 399 | X174: 0 | Y174: 399 | Z174: 0 | AA174: 0 | AB174: 0
A175: N3091001 | B175: 优雅杏 | C175: N309044 | D175: N3091001优雅杏 | E175: 6 | F175: 0 | G175: 6 | H175: 0 | I175: 6 | J175: 0 | M175: 6 | N175: 6 | O175: 6 | P175: 6 | Q175: 做完不做 | R175: 1 | S175: 1 | T175: 1 | U175: 1 | V175: 212 | W175: 399 | X175: 0 | Y175: 2394 | Z175: 2394 | AA175: 2394 | AB175: 2394
A176: N3091001 | B176: 皇家紫 | C176: N309047 | D176: N3091001皇家紫 | E176: 2 | F176: 0 | G176: 2 | H176: 0 | I176: 3 | J176: 0 | M176: 2 | N176: 2 | O176: 2 | P176: 2 | Q176: 做完不做 | R176: 0.6666666667 | S176: 0.6666666667 | T176: 0.6666666667 | U176: 0.6666666667 | V176: 212 | W176: 399 | X176: 0 | Y176: 1197 | Z176: 798 | AA176: 798 | AB176: 798
A177: N309120201 | B177: 中国红大版 | C177: N30907Z1L | D177: N309120201中国红大版 | E177: 1 | F177: 0 | G177: 1 | H177: 1 | I177: 4 | J177: 4.285714286 | M177: 0.2333333333 | N177: 0.2333333333 | O177: 0.2333333333 | P177: 0.2333333333 | Q177: 做完不做 | R177: 0.25 | S177: 0.25 | T177: 0.25 | U177: 0.25 | V177: 229 | W177: 469 | X177: 2010 | Y177: 1876 | Z177: 469 | AA177: 469 | AB177: 469
A178: N309120201 | B178: 中国红小版 | C178: N30907Z1S | D178: N309120201中国红小版 | E178: 2 | F178: 0 | G178: 2 | H178: 1 | I178: 1 | J178: 4.285714286 | M178: 0.4666666667 | N178: 0.4666666667 | O178: 0.4666666667 | P178: 0.4666666667 | Q178: 做完不做 | R178: 2 | S178: 2 | T178: 2 | U178: 2 | V178: 195 | W178: 449 | X178: 1924.285714 | Y178: 449 | Z178: 898 | AA178: 898 | AB178: 898
A179: N309120201 | B179: 祖母绿大版 | C179: N309076L | D179: N309120201祖母绿大版 | E179: 1 | F179: 0 | G179: 1 | H179: 0 | I179: 1 | J179: 0 | M179: 1 | N179: 1 | O179: 1 | P179: 1 | Q179: 做完不做 | R179: 1 | S179: 1 | T179: 1 | U179: 1 | V179: 235 | W179: 469 | X179: 0 | Y179: 469 | Z179: 469 | AA179: 469 | AB179: 469
A180: N309120201 | B180: 祖母绿小版 | C180: N309076S | D180: N309120201祖母绿小版 | E180: 2 | F180: 0 | G180: 2 | H180: 1 | I180: 1 | J180: 4.285714286 | M180: 0.4666666667 | N180: 0.4666666667 | O180: 0.4666666667 | P180: 0.4666666667 | Q180: 做完不做 | R180: 2 | S180: 2 | T180: 2 | U180: 2 | V180: 210 | W180: 449 | X180: 1924.285714 | Y180: 449 | Z180: 898 | AA180: 898 | AB180: 898
A181: N3091701 | B181: 豆沙粉 | C181: N30909A | D181: N3091701豆沙粉 | E181: 2 | F181: 1 | G181: 3 | H181: 1 | I181: 1 | J181: 4.285714286 | M181: 0.4666666667 | N181: 0.7 | O181: 0.7 | P181: 0.7 | Q181: 做完不做 | R181: 2 | S181: 3 | T181: 3 | U181: 3 | V181: 394 | W181: 797.3 | X181: 3417 | Y181: 797.3 | Z181: 1594.6 | AA181: 2391.9 | AB181: 2391.9
A182: N3091701 | B182: 彩蓝 | C182: N309093 | D182: N3091701彩蓝 | E182: 0 | F182: 0 | G182: 0 | H182: 0 | I182: 2 | J182: 0 | M182: 0 | N182: 0 | O182: 0 | P182: 0 | Q182: 做完不做 | R182: 0 | S182: 0 | T182: 0 | U182: 0 | V182: 394 | W182: 797.3 | X182: 0 | Y182: 1594.6 | Z182: 0 | AA182: 0 | AB182: 0
A183: N3091702 | B183: 豆沙粉 | C183: N30910A | D183: N3091702豆沙粉 | E183: 19 | F183: 309 | G183: 328 | H183: 31 | I183: 112 | J183: 132.8571429 | M183: 0.1430107527 | N183: 2.468817204 | O183: 2.468817204 | P183: 2.468817204 | Q183: 三级爆款 | R183: 0.1696428571 | S183: 2.928571429 | T183: 2.928571429 | U183: 2.928571429 | V183: 90 | W183: 199 | X183: 26438.57143 | Y183: 22288 | Z183: 3781 | AA183: 65272 | AB183: 65272
A184: N3091702 | B184: 彩蓝 | C184: N309103 | D184: N3091702彩蓝 | E184: -4 | F184: 100 | G184: 96 | H184: 3 | I184: 13 | J184: 12.85714286 | M184: -0.3111111111 | N184: 7.466666667 | O184: 7.466666667 | P184: 7.466666667 | Q184: 三级爆款 | R184: -0.3076923077 | S184: 7.384615385 | T184: 7.384615385 | U184: 7.384615385 | V184: 90 | W184: 199 | X184: 2558.571429 | Y184: 2587 | Z184: -796 | AA184: 19104 | AB184: 19104
A185: N3091702 | B185: 加州橙 | C185: N30910B | D185: N3091702加州橙 | E185: 38 | F185: 0 | G185: 38 | H185: 3 | I185: 11 | J185: 12.85714286 | M185: 2.955555556 | N185: 2.955555556 | O185: 2.955555556 | P185: 2.955555556 | Q185: 三级爆款 | R185: 3.454545455 | S185: 3.454545455 | T185: 3.454545455 | U185: 3.454545455 | V185: 90 | W185: 199 | X185: 2558.571429 | Y185: 2189 | Z185: 7562 | AA185: 7562 | AB185: 7562
A186: N3102202 | B186: 子夜黑 | C186: N310070 | D186: N3102202子夜黑 | E186: 44 | F186: 1348 | G186: 1392 | H186: 76 | I186: 288 | J186: 325.7142857 | M186: 0.1350877193 | N186: 4.273684211 | O186: 4.273684211 | P186: 4.273684211 | Q186: 一级爆款 | R186: 0.1527777778 | S186: 4.833333333 | T186: 4.833333333 | U186: 4.833333333 | V186: 57.5 | W186: 149 | X186: 48531.42857 | Y186: 42912 | Z186: 6556 | AA186: 207408 | AB186: 207408
A187: N3102202 | B187: 电光蓝 | C187: N310073 | D187: N3102202电光蓝 | E187: -13 | F187: 797 | G187: 784 | H187: 17 | I187: 114 | J187: 72.85714286 | M187: -0.1784313725 | N187: 10.76078431 | O187: 10.76078431 | P187: 10.76078431 | Q187: 一级爆款 | R187: -0.1140350877 | S187: 6.877192982 | T187: 6.877192982 | U187: 6.877192982 | V187: 59.5 | W187: 149 | X187: 10855.71429 | Y187: 16986 | Z187: -1937 | AA187: 116816 | AB187: 116816
A188: N3102202 | B188: 石榴红 | C188: N310071 | D188: N3102202石榴红 | E188: 6 | F188: 516 | G188: 522 | H188: 17 | I188: 69 | J188: 72.85714286 | M188: 0.08235294118 | N188: 7.164705882 | O188: 7.164705882 | P188: 7.164705882 | Q188: 一级爆款 | R188: 0.08695652174 | S188: 7.565217391 | T188: 7.565217391 | U188: 7.565217391 | V188: 59.5 | W188: 149 | X188: 10855.71429 | Y188: 10281 | Z188: 894 | AA188: 77778 | AB188: 77778
A189: N3102202 | B189: 玫瑰紫 | C189: N310077 | D189: N3102202玫瑰紫 | E189: -217 | F189: 6457 | G189: 6240 | H189: 187 | I189: 712 | J189: 801.4285714 | M189: -0.2707664884 | N189: 7.786096257 | O189: 7.786096257 | P189: 7.786096257 | Q189: 一级爆款 | R189: -0.3047752809 | S189: 8.764044944 | T189: 8.764044944 | U189: 8.764044944 | V189: 59.5 | W189: 149 | X189: 119412.8571 | Y189: 106088 | Z189: -32333 | AA189: 929760 | AB189: 929760
A190: N3102202 | B190: 香妃橙 | C190: N31007B | D190: N3102202香妃橙 | E190: -2 | F190: 876 | G190: 874 | H190: 50 | I190: 140 | J190: 214.2857143 | M190: -0.009333333333 | N190: 4.078666667 | O190: 4.078666667 | P190: 4.078666667 | Q190: 一级爆款 | R190: -0.01428571429 | S190: 6.242857143 | T190: 6.242857143 | U190: 6.242857143 | V190: 59.5 | W190: 149 | X190: 31928.57143 | Y190: 20860 | Z190: -298 | AA190: 130226 | AB190: 130226
A191: N3111101 | B191: 森林绿大版 | C191: N311016L | D191: N3111101森林绿大版 | E191: 0 | F191: 0 | G191: 0 | H191: 0 | I191: 1 | J191: 0 | M191: 0 | N191: 0 | O191: 0 | P191: 0 | Q191: 做完不做 | R191: 0 | S191: 0 | T191: 0 | U191: 0 | V191: 312 | W191: 699 | X191: 0 | Y191: 699 | Z191: 0 | AA191: 0 | AB191: 0
A192: N3111101 | B192: 石板灰小版 | C192: N311018S | D192: N3111101石板灰小版 | E192: 1 | F192: 0 | G192: 1 | H192: 0 | I192: 0 | J192: 0 | M192: 1 | N192: 1 | O192: 1 | P192: 1 | Q192: 做完不做 | R192: 1 | S192: 1 | T192: 1 | U192: 1 | V192: 265 | W192: 599 | X192: 0 | Y192: 0 | Z192: 599 | AA192: 599 | AB192: 599
A193: N3111105 | B193: 子夜黑 | C193: N311050 | D193: N3111105子夜黑 | E193: 13 | F193: 600 | G193: 613 | H193: 22 | I193: 84 | J193: 94.28571429 | M193: 0.1378787879 | N193: 6.501515152 | O193: 6.501515152 | P193: 6.501515152 | Q193: 三级爆款 | R193: 0.1547619048 | S193: 7.297619048 | T193: 7.297619048 | U193: 7.297619048 | V193: 208 | W193: 399 | X193: 37620 | Y193: 33516 | Z193: 5187 | AA193: 244587 | AB193: 244587
A194: N3111105 | B194: 香芋紫 | C194: N311057 | D194: N3111105香芋紫 | E194: 1 | F194: 0 | G194: 1 | H194: 0 | I194: 1 | J194: 0 | M194: 1 | N194: 1 | O194: =IF(J194=0,G194,(G194+K194)/J194) -> 1 | P194: =IF(J194=0,G194,(G194+K194+L194)/J194) -> 1 | Q194: 颜色不做 | R194: 1 | S194: 1 | T194: =IF(I194=0,K194+G194,(K194+G194)/I194) -> 1 | U194: =IF(I194=0,G194,(K194+G194+L194)/I194) -> 1 | V194: 211 | W194: 399 | X194: =W194*J194 -> 0 | Y194: =W194*I194 -> 399 | Z194: =W194*E194 -> 399 | AA194: =G194*W194 -> 399 | AB194: =(G194+K194+L194)*W194 -> 399
A195: N3111108 | B195: 玫瑰紫 | C195: N311087 | D195: N3111108玫瑰紫 | E195: -1 | F195: 0 | G195: -1 | H195: 0 | I195: 0 | J195: 0 | M195: -1 | N195: -1 | O195: -1 | P195: -1 | Q195: 做完不做 | R195: -1 | S195: -1 | T195: -1 | U195: -1 | V195: 42 | W195: 139 | X195: 0 | Y195: 0 | Z195: -139 | AA195: -139 | AB195: -139
A196: N3111901 | B196: 渐变粉 | C196: N31109A | D196: N3111901渐变粉 | E196: 54 | F196: 0 | G196: 54 | H196: 2 | I196: 14 | J196: 8.571428571 | M196: 6.3 | N196: 6.3 | O196: 6.3 | P196: 6.3 | Q196: 三级爆款 | R196: 3.857142857 | S196: 3.857142857 | T196: 3.857142857 | U196: 3.857142857 | V196: 99 | W196: 199 | X196: 1705.714286 | Y196: 2786 | Z196: 10746 | AA196: 10746 | AB196: 10746
A197: N3111901 | B197: 渐变紫 | C197: N311097 | D197: N3111901渐变紫 | E197: 110 | F197: 120 | G197: 230 | H197: 16 | I197: 71 | J197: 68.57142857 | M197: 1.604166667 | N197: 3.354166667 | O197: 3.354166667 | P197: 3.354166667 | Q197: 三级爆款 | R197: 1.549295775 | S197: 3.23943662 | T197: 3.23943662 | U197: 3.23943662 | V197: 99 | W197: 199 | X197: 13645.71429 | Y197: 14129 | Z197: 21890 | AA197: 45770 | AB197: 45770
A198: N3111901 | B198: 渐变橙 | C198: N31109B | D198: N3111901渐变橙 | E198: 97 | F198: 0 | G198: 97 | H198: 5 | I198: 27 | J198: 21.42857143 | M198: 4.526666667 | N198: 4.526666667 | O198: 4.526666667 | P198: 4.526666667 | Q198: 三级爆款 | R198: 3.592592593 | S198: 3.592592593 | T198: 3.592592593 | U198: 3.592592593 | V198: 99 | W198: 199 | X198: 4264.285714 | Y198: 5373 | Z198: 19303 | AA198: 19303 | AB198: 19303
A199: N3121201 | B199: 皇家紫 | C199: N312027 | D199: N3121201皇家紫 | E199: 1 | F199: 0 | G199: 1 | H199: 0 | I199: 0 | J199: 0 | M199: 1 | N199: 1 | O199: 1 | P199: 1 | Q199: 做完不做 | R199: 1 | S199: 1 | T199: 1 | U199: 1 | V199: 297 | W199: 549 | X199: 0 | Y199: 0 | Z199: 549 | AA199: 549 | AB199: 549
A200: N3121201 | B200: 宝石蓝 | C200: N312023 | D200: N3121201宝石蓝 | E200: 6 | F200: 0 | G200: 6 | H200: 0 | I200: 0 | J200: 0 | M200: 6 | N200: 6 | O200: 6 | P200: 6 | Q200: 做完不做 | R200: 6 | S200: 6 | T200: 6 | U200: 6 | V200: 297 | W200: 549 | X200: 0 | Y200: 0 | Z200: 3294 | AA200: 3294 | AB200: 3294
... 266 more rows

Sheet 828营销方案最终版
A1: 828活动营销方案
A2: 主题 | C2: 绝对真皮艺术
A3: 业绩目标 | C3: 业绩 | D3: UV | E3: 转化 | F3: 客单
C4: 165 | D4: 15W | E4: 0.03 | F4: 400
C5: 55 | D5: 7W | E5: 0.02 | F5: 380
C6: 30 | D6: 5W | E6: 0.015 | F6: 380
C7: 30 | D7: 5W | E7: 0.015 | F7: 380
C8: 45 | D8: 6W | E8: 0.02 | F8: 380
A9: 目的 | C9: 1.做8月业绩高点（总目标325W) 2.做高利润活动，做新品 3.做品牌时尚性，购物体验超出客户期望值
A10: 预热期 | B10: 8月21日-8月24日 | C10: 正式期 | D10: 8月25日-8月29日 | E10: 要求 | F10: /
A11: 活动内容 | B11: 时间轴 | C11: 活动名称 | D11: 活动内容 | E11: 活动规则 | F11: 备注
B12: 常规 | C12: 全场包邮 | D12: 全场包邮 | E12: 包邮默认顺丰特惠，如发申通，中通，圆通请联系客服备注，EMS和顺丰联系客服补差价，包邮港澳台及海外除外 | F12: /
C13: 优惠券 | D13: 500减50,800减100,1500减200，满3000减500 | E13: 1.店铺优惠劵 2.使用时间：8月25日-8月29日，逾期作废 3.每张优惠劵限领5张 | F13: 目的：做业绩，提高整体转化
C14: 试用中心 | D14: O061405(8月28号上线） | E14: 产品不能下架（否则取消资格）活动商品提供10个（请仓库做预留） | F14: 目的：做流量
C15: 折扣力度 | D15: 活动商品按官方要求30天历史最低价 | E15: / | F15: 详情见产品表格
B16: 预热期 | C16: 抽奖 | D16: 奖品：10元，20元，新品满600减100元优惠劵，500免单卡 （无门槛500元优惠劵）（后台设置抽奖比例） | E16: 1.条件：一个商品加入购物车 2.每人仅限三次 备注： 1）预热期仅限3次 2）加入购物车 3）优惠劵：下单送水杯，10元，20元，300减50元优惠劵，500元无门槛优惠劵 5000张10元无优惠劵 40% 1000张20元无优惠劵 20% 400张新品满600减100元 1% 2张500无门槛 0.1% 加油 38.9% | F16: 目的：增加顾客的互动性，引导加收藏店铺 规则： 1.加入购物车即可免费抽奖3次 1）每个ID仅限3次 2）每种优惠劵限领1张 2.优惠劵数量有限，抽完即止 3.每个ID只能拥有同一个店铺5张优惠劵，请亲们抽奖时注意自己的优惠劵领用额度
C17: 优惠劵秒杀 | D17: 每日0.9元秒杀优惠劵 | E17: 全场300减50优惠劵 每天99张 2.一个ID仅限一张 3.优惠劵面额满300减50 4.秒杀时间：每天10：00，共4天 备注：不能加入购物车 | F17: 1.优惠劵50元（满300使用） 2.优惠劵使用时间6月26日当天，逾期作废 3.请10分钟内拍下付款，逾时将自动关闭交易，30分钟之内将自动发货，请及时确认收货，否则后期将无法发送优惠劵到亲们的账户中 4.发放时间将统一在6月25日全部发送完毕 5.后期没有收到优惠劵的亲们，可截图订单给在线客服，领取优惠劵 备注：一个店铺只能领取5张优惠劵，请亲们查看优惠劵是否满额，如满额请删除一张优惠劵，否则无法正常收到优惠劵
B18: 正式期 | C18: 新品三连发 | D18: 时间8月25日 0点上新 1）动物纹系列 （3款） 2）高端油蜡皮 爆款（1款） 10：00上新编织系列（5款） 14：00上新高端油蜡常规款 + 小众款 （4款） 26号：10：00营造跑单形式：甩掉之前的限量款（1月至7月的 一共5款） | E18: 详情见表格，626没卖完的小猫包，等类似的款式通过跑单的形式去做刺激成交 | F18: 目的：冲刺业绩，做整体转化
C19: 四重好礼 | D19: 1.前300名送定制水杯 2.满699送毛球 （限量400个） 3.满1299送大毛球（限量100个） 4.25号当天累计销售最高的两名赢取1000元旅游基金 | E19: 1.前300名送定制水杯 2.数量有限送完即止300份 备注： 1）订单以拍下付款时间为准 2）优惠叠加使用 | F19: 目的： 1）提高顾客满意度 2）0点业绩冲刺，增加购物紧迫感
C20: 先试后买 | D20: 针对于部分爆款商品退货率较低的产品做先试后买 | E20: 1.顾客拍下无需任何费用，事先由天猫垫付资金 2.费用：额外的0.8%税点+运费险 3.退款： 1）未确认收货时，无需任何理由 2）确认收货后，需商家同意/拒绝 4.条件：暂时针对T3会员/后期天猫更改规则将第一时间通知到各部门 | F20: 目的：做业绩，提高整体新品转化
C21: 孤品秒杀 | D21: 22款做完不做款（后期详见表格） | E21: 正式期 1. 26号开始每天晚上21:00开秒，限时秒杀 2.2小时内没有秒杀完毕，手动下架 3.打造真正的限时秒杀 | F21: 目的：冲刺业绩，清库存
